Cogmind - Beta 12 X4 @@@ ROGUE MODE // 2022.12.21 @ 02:23:20 Player: Runia Result: Fortifying 0b10! Performance ------------- Evolutions (9) 4500 Regions Visited (36) 7200 Robots Destroyed (633) 3165 Value Destroyed (39960) 39960 Prototype IDs (95) 1900 Alien Tech Used (10) 2000 Bonus (28468) 28468 TOTAL SCORE: 87193 Bonus ------- High Alert Combat Kills 5677 Follower Combat Kills 3742 Entered Garrisons 1800 Used RIF Installer 5000 Met R17 at Cetus 500 Destroyed MAIN.C Guards 500 Met MAIN.C 5000 Destroyed MAIN.C Shell 5000 Win 3000 Friendly Fire -1751 Cogmind --------- Core Integrity 619/1600 Matter 234/300 Energy 1010/1020 System Corruption 0% Temperature Cool (0) Movement Immobile (Siege) Location By MAIN.C's Side Parts ------- > --- POWER (4) -------- Improved Quantum Reactor Zero-point Reactor Zero-point Reactor Zero-point Reactor > --- PROPULSION (6) --- Experimental Biometal Heavy Treads Enhanced Armored Heavy Treads Enhanced Armored Heavy Treads > --- UTILITY (13) ----- Experimental Cooling System Huge Storage Unit Experimental Targeting Computer Experimental Target Analyzer Experimental Core Analyzer Experimental Armor Integrity Analyzer Advanced Kinecellerator SHELL Armor Graphene Brace ME-RLN's Chromatic Screen AEGIS Remote Shield > --- WEAPON (2) ------- Tri-rail Accelerator > --- INVENTORY (25) --- Reinforced Quantum Reactor Experimental Biometal Heavy Treads Advanced Heavy Siege Treads Experimental Cooling System Experimental Energy Well (600) Experimental Energy Well (600) Experimental Matter Compressor (500) Improved Utility Shielding Beam Splitter Experimental EM Disruption Field Advanced Force Field Long-range Tractor Beam Transdimensional Reconstructor Compact HERF Cannon Cooled Nova Cannon Tri-rail Accelerator Hellfire Missile Launcher ME-RLN's Wand Peak State ------------ > --- POWER ------------ Reinforced Quantum Reactor Improved Quantum Reactor Zero-point Reactor Zero-point Reactor > --- PROPULSION ------- Experimental Biometal Heavy Treads Experimental Biometal Heavy Treads Experimental Biometal Heavy Treads > --- UTILITY ---------- Experimental Cooling System Experimental Coolant Injector Huge Storage Unit Experimental Targeting Computer Experimental Targeting Computer Experimental Armor Integrity Analyzer Advanced Kinecellerator Improved Utility Shielding SHELL Armor ME-RLN's Chromatic Screen AEGIS Remote Shield > --- WEAPON ----------- Core Stripper > --- INVENTORY -------- Reinforced Quantum Reactor Advanced Heavy Siege Treads Experimental Cooling System Experimental Energy Well Experimental Energy Well Experimental Matter Compressor Experimental Terrain Scan Processor Advanced Target Analyzer Improved Utility Shielding Experimental EM Disruption Field Experimental Shield Generator Advanced Force Field Long-range Tractor Beam Transdimensional Reconstructor Integrity Redistributor Integrity Redistributor Compact HERF Cannon Cooled Nova Cannon Tri-rail Accelerator Tri-rail Accelerator Hellfire Missile Launcher ME-RLN's Wand [Rating: 249] Favorites ----------- Power Improved Quantum Reactor Engine Heavy Ion Engine Power Core Reinforced Fission Core Reactor Improved Quantum Reactor Propulsion Experimental Biometal Heavy Treads Treads Experimental Biometal Heavy Treads Leg Aluminum Leg Wheel Armored Wheel Utility Huge Storage Unit Device Advanced Force Field Storage Huge Storage Unit Processor Experimental Targeting Computer Hackware Relay Coupler [Sentry] Protection Layered Medium Armor Plating Artifact Phase Armor Weapon Improved Assault Rifle Energy Gun Medium Laser Energy Cannon Enhanced Nova Cannon Ballistic Gun Improved Assault Rifle Ballistic Cannon Heavy Assault Cannon Launcher Heavy Missile Launcher Special Weapon ME-RLN's Wand Impact Weapon Heavy Mace Piercing Weapon Enhanced Force Lance Build | -11 -10 -10 -9 -9 -9 -8 -8 -8 -8 -7 -7 -7 -7 -6 -6 -6 -6 -6 -6 -5 -5 -5 -5 -5 -5 -4 -4 -3 -3 -3 -3 -2 -2 -2 -1 -1 ------- Run | Scr Mat Min Mat Min Exi Min Mat Gar Mat Fac Gar Fac Gar Fac Was Fac Gar Fac Gar Fac Ext Cet Arc Hub Gar Fac Gar Res Qua Sec Gar Res Tes Gar Acc Com Slots Evolved 18 | . . . 2 . . . 2 . . 2 . . . 2 . . . . . 2 . . . . . 2 . 2 . . . 2 . . 2 . Power 3 | . . . . . . . . . . . . . . . . . . . . 1 . . . . . . . . . . . 1 . . 1 . Propulsion 4 | . . . . . . . 1 . . . . . . 1 . . . . . . . . . . . . . 2 . . . . . . . . Utility 11 | . . . 1 . . . 1 . . 2 . . . 1 . . . . . 1 . . . . . 2 . . . . . 1 . . 2 . Weapon . | . . . 1 . . . . . . . . . . . . . . . . . . . . . . . . . . . . . . . -1 . Parts Attached 830 | 2 7 7 45 . 18 13 25 38 20 11 41 4 19 18 7 6 31 22 36 21 26 9 4 5 28 23 29 7 41 62 3 30 23 13 31 105 Power 34 | . 1 2 3 . 2 1 . 1 . . 1 . . 1 . . 1 . 3 1 2 2 . . . . 2 . 2 3 . 1 . . 1 4 Engine 4 | . 1 1 1 . 1 . . . . . . . . . . . . . . . . . . . . . . . . . . . . . . . Core 10 | . . 1 2 . 1 1 . 1 . . 1 . . . . . . . . 1 2 . . . . . . . . . . . . . . . Reactor 20 | . . . . . . . . . . . . . . 1 . . 1 . 3 . . 2 . . . . 2 . 2 3 . 1 . . 1 4 Propulsion 71 | 2 2 1 8 . 1 2 8 8 4 . 5 . . 4 3 . . 3 4 . . 1 . 1 . . . 1 3 3 . . . . 2 5 Treads 60 | 2 2 1 8 . 1 2 7 4 3 . 3 . . 3 3 . . 2 3 . . 1 . 1 . . . 1 3 3 . . . . 2 5 Leg . | . . . . . . . . . . . . . . . . . . . . . . . . . . . . . . . . . . . . . Wheel 11 | . . . . . . . 1 4 1 . 2 . . 1 . . . 1 1 . . . . . . . . . . . . . . . . . Hover . | . . . . . . . . . . . . . . . . . . . . . . . . . . . . . . . . . . . . . Flight . | . . . . . . . . . . . . . . . . . . . . . . . . . . . . . . . . . . . . . Utility 416 | . 3 1 9 . 9 4 11 10 7 6 15 4 7 7 4 1 13 11 9 11 8 1 2 1 15 18 15 4 25 36 1 25 20 13 16 74 Device 233 | . 2 1 1 . 6 3 3 5 5 2 6 . . 1 1 . 5 3 1 2 7 . 2 . 10 11 5 2 14 27 . 22 14 4 10 58 Storage 11 | . 1 . . . 1 . 3 . . 1 . . . . . . . . . . . . . . . 2 . . . 1 . . . . . 2 Processor 18 | . . . 2 . . 1 . . . . . . . . . . . . . . . . . . . 1 1 . 2 2 . 1 . . . 8 Hackware 73 | . . . . . . . . . . 1 6 4 7 4 1 1 5 6 5 6 . . . 1 3 3 5 1 5 3 . . . 3 3 . Protection 75 | . . . 6 . 2 . 5 5 2 2 3 . . 2 2 . 3 2 3 3 1 1 . . 2 1 4 1 3 3 . 2 6 2 3 6 Artifact 6 | . . . . . . . . . . . . . . . . . . . . . . . . . . . . . 1 . 1 . . 4 . . Weapon 309 | . 1 3 25 . 6 6 6 19 9 5 20 . 12 6 . 5 17 8 20 9 16 5 2 3 13 5 12 2 11 20 2 4 3 . 12 22 Energy Gun 10 | . . 1 2 . . . . . . . . . . . . . . . . . . 2 . . 3 . 1 . . . . . 1 . . . Energy Cannon 71 | . . . . . . . . . . . 1 . . 1 . 1 7 3 . 1 . 2 . 2 2 3 5 2 3 14 1 2 2 . 6 13 Ballistic Gun 82 | . . 2 18 . 4 6 5 12 6 2 10 . 3 2 . 1 1 1 6 1 1 . 1 . . . . . . . . . . . . . Ballistic Cannon 12 | . . . . . . . . . . . . . . . . . . . 1 1 5 . . . . . . . 1 . . . . . 1 3 Launcher 37 | . . . 2 . 1 . 1 3 2 2 4 . 2 1 . . 6 2 5 2 1 1 . . . . . . . . . . . . . 2 Special Weapon 54 | . . . . . 1 . . . . . 2 . 6 2 . 2 3 . 5 1 5 . 1 . 7 1 4 . 2 3 1 1 . . 5 2 Impact Weapon 26 | . 1 . 3 . . . . 4 1 1 3 . 1 . . 1 . 2 2 . . . . . . . . . 2 2 . 1 . . . 2 Slashing Weapon . | . . . . . . . . . . . . . . . . . . . . . . . . . . . . . . . . . . . . . Piercing Weapon 17 | . . . . . . . . . . . . . . . . . . . 1 3 4 . . 1 1 1 2 . 3 1 . . . . . . Special Melee Weapon . | . . . . . . . . . . . . . . . . . . . . . . . . . . . . . . . . . . . . . Unidentified Prototypes 49 | . . . 2 . 5 2 2 . . 1 . . . 1 . 1 . . . . 1 3 1 . . . . . 14 4 . . 3 . . 9 Corrupted Parts 1 | . . . . . . . . . . . . . . . . . . . . . . . 1 . . . . . . . . . . . . . System Corruption 2 | . . . . . . . . . . . . . . . . . . . . . . . 2 . . . . . . . . . . . . . Parts Lost 48 | . 1 1 2 . 9 1 . 4 1 . 4 . . 1 . . 1 1 2 1 . 1 . 3 1 . 3 1 5 3 . . . . . 2 Power 4 | . 1 . . . 1 . . . . . . . . . . . . . . . . . . . . . . . 1 . . . . . . 1 Propulsion 5 | . . . . . 1 . . . . . 1 . . 1 . . . . . . . . . 1 . . . . 1 . . . . . . . Utility 27 | . . . 1 . 5 1 . 2 . . 3 . . . . . . . 2 1 . . . 1 1 . 2 1 3 3 . . . . . 1 Weapon 12 | . . 1 1 . 2 . . 2 1 . . . . . . . 1 1 . . . 1 . 1 . . 1 . . . . . . . . . Highest Loss Streak 4 | . 1 1 1 . 4 1 . 2 1 . 2 . . 1 . . 1 1 2 1 . 1 . 3 1 . 2 1 3 2 . . . . . 1 To Critical Strikes 5 | . . . . . 3 . . . . . . . . . . . . . . . . 1 . . . . 1 . . . . . . . . . Average Slot Usage (%) 88 | . 95 99 97 100 97 99 99 96 99 91 90 92 87 88 92 66 81 90 82 73 81 86 84 87 86 88 87 84 78 74 72 81 81 76 79 77 Engine 1 | . 14 7 10 11 9 . . . . . . . . . . . . . . . . . . . . . . . . . . . . . . . Core 3 | . . 6 . . 1 11 9 9 9 7 7 7 7 4 . . . . . 2 10 1 . . . . . . . . . . . . . . Reactor 4 | . . . . . . . . . . . . . . 1 6 6 6 6 5 5 . 9 11 11 11 9 10 9 8 6 9 12 13 13 16 15 Treads 16 | . 28 28 21 22 22 22 26 14 18 15 15 15 15 22 25 13 13 12 12 11 11 11 11 11 11 10 10 14 13 14 14 13 13 13 11 11 Wheel 2 | . . . . . . . . 12 9 7 7 7 7 3 . . . 5 2 . . . . . . . . . . . . . . . . . Device 8 | . 10 14 4 . 5 11 6 3 9 14 4 . . . 4 . 6 5 5 5 9 11 12 17 18 21 14 8 4 10 . 12 15 6 7 18 Storage 7 | . 14 14 11 11 11 11 9 9 9 7 7 7 7 6 6 6 6 6 6 5 5 5 5 5 5 5 6 4 4 4 5 4 4 4 4 4 Processor 4 | . . . 5 . . 10 9 9 9 7 2 . . . . . . . . . . . . . . 2 5 4 3 8 9 8 8 8 5 12 Hackware 10 | . . . . . . . . . . . 13 23 23 22 21 13 20 26 24 18 21 17 17 16 13 17 19 22 22 11 14 13 8 10 19 1 Protection 6 | . . . 10 22 14 . 10 10 8 7 6 7 7 7 6 6 7 5 6 10 7 11 6 5 5 4 5 3 . 4 4 3 4 6 7 7 Energy Gun 1 | . 14 14 3 . . . . . . . . . . . . . . . . . . 9 . . 1 . . . . . . . . . . . Energy Cannon 3 | . . . . . . . . . . . 4 7 . . . 4 7 3 . . . 4 5 10 10 11 10 9 7 6 7 7 8 8 3 2 Ballistic Gun 10 | . 12 14 28 33 32 32 26 24 26 20 7 . 2 5 6 5 . . 3 . . . 4 . . . . . . . . . . . . . Special Weapon 2 | . . . . . . . . . . . 4 7 6 3 6 1 2 6 3 . 2 . 4 4 2 2 2 4 2 3 1 3 4 4 3 2 Impact Weapon 1 | . 1 . . . . . . 2 . 1 4 7 6 6 6 6 6 5 3 . . . . . . . . . . . . . . . . . Naked Turns . | . . . . . . . . . . . . . . . . . . . . . . . . . . . . . . . . . . . . . Heaviest Build 248 | 14 31 32 43 43 68 76 118 136 111 119 138 137 137 140 149 150 149 118 128 151 151 158 157 156 163 173 178 173 195 178 164 193 202 205 216 248 Greatest Support 265 | 40 46 46 46 46 55 55 84 76 12 12 12 12 12 90 140 140 140 140 150 150 150 155 155 155 155 155 155 230 255 265 255 255 255 255 255 255 Greatest Overweight (x) 49 | . . . 1 . 1 1 9 11 9 9 11 11 11 11 1 1 1 9 9 1 1 1 49 1 1 1 1 . . . . . . . 1 . Average Overweight (x) 2 | . . . . . . 1 . 7 8 9 10 11 10 6 1 1 . 8 2 . . . 10 . . . . . . . . . . . . . Largest Inventory Capacity 25 | 8 15 15 15 15 20 20 25 25 25 25 25 25 25 25 25 25 25 25 25 25 25 25 25 25 25 25 25 25 25 25 25 25 25 25 25 25 Average Capacity 23 | 8 14 15 15 15 19 20 21 25 25 25 25 25 25 25 25 25 25 25 25 25 25 25 25 25 25 25 25 25 25 25 25 25 25 25 25 25 Most Carried 25 | 6 15 15 15 15 20 20 25 25 25 25 25 25 25 25 25 25 25 25 25 25 25 25 25 25 25 25 25 25 25 25 24 25 25 25 25 25 Average Carried 22 | 4 9 14 14 15 17 19 20 24 24 24 24 23 21 21 20 24 24 23 23 23 23 24 24 24 23 23 24 23 24 24 21 21 24 24 24 23 Final Capacity 25 | 8 15 15 15 15 20 20 25 25 25 25 25 25 25 25 25 25 25 25 25 25 25 25 25 25 25 25 25 25 25 25 25 25 25 25 25 25 Final Carried 25 | 2 15 15 15 15 19 20 25 24 25 25 25 21 25 20 25 24 25 21 25 21 25 24 24 22 25 23 25 25 25 22 21 25 25 25 25 21 Class Distribution -------------------- 27% | Botlord-Mutant 20% | Bothacker-Mutant 11% | Scavenger-Mutant 10% | Scavenger-Gunner 8% | Gunner 7% | Mutant 5% | Tank 5% | Generator-Mutant Dominant Class ---------------- Mutant | -10/Materials Mutant | -10/Mines Gunner | -9/Materials Tank | -9/Mines Tank | -9/Exiles Gunner | -8/Mines Gunner | -8/Materials Scavenger-Mutant | -8/Garrison Scavenger-Gunner | -8/Materials Scavenger-Gunner | -7/Factory Bothacker-Mutant | -7/Garrison Bothacker-Mutant | -7/Factory Bothacker-Mutant | -7/Garrison Botlord-Mutant | -6/Factory Bothacker-Mutant | -6/Waste Bothacker-Mutant | -6/Factory Botlord-Mutant | -6/Garrison Botlord-Mutant | -6/Factory Botlord-Mutant | -6/Garrison Botlord-Mutant | -5/Factory Bothacker-Mutant | -5/Extension Bothacker-Mutant | -5/Cetus Bothacker-Mutant | -5/Archives Bothacker-Mutant | -5/Hub_04(d) Botlord-Mutant | -5/Garrison Botlord-Mutant | -4/Factory Botlord-Mutant | -4/Garrison Botlord-Mutant | -3/Research Botlord-Mutant | -3/Quarantine Scavenger-Mutant | -3/Section 7 Scavenger-Mutant | -3/Garrison Scavenger-Mutant | -2/Research Scavenger-Mutant | -2/Testing Scavenger-Mutant | -2/Garrison Botlord-Mutant | -1/Access Generator-Mutant | -1/Command Resources | -11 -10 -10 -9 -9 -9 -8 -8 -8 -8 -7 -7 -7 -7 -6 -6 -6 -6 -6 -6 -5 -5 -5 -5 -5 -5 -4 -4 -3 -3 -3 -3 -2 -2 -2 -1 -1 ----------- Run | Scr Mat Min Mat Min Exi Min Mat Gar Mat Fac Gar Fac Gar Fac Was Fac Gar Fac Gar Fac Ext Cet Arc Hub Gar Fac Gar Res Qua Sec Gar Res Tes Gar Acc Com Matter Collected 22046 | 200 385 131 1093 . 888 824 1138 998 1473 60 1234 188 852 245 1133 144 671 490 1193 585 1312 143 113 22 333 248 312 103 485 851 73 309 193 183 444 2997 Remotely 3392 | . . . . . . . . . 251 . 447 . . . 153 . . . . . 421 . . . . . . . . . . . . . 156 1964 Salvage Created 35147 | . 686 429 2269 . 494 598 1734 1461 2344 140 1043 . 417 290 1306 163 947 804 1106 561 1020 267 252 100 947 498 535 142 2216 2904 170 1667 969 732 1467 4469 Parts 1559 | . 47 29 142 . 65 37 104 73 136 6 43 . 12 13 11 7 26 20 29 21 32 9 16 2 34 20 21 3 100 134 10 75 61 37 47 137 Haulers Intercepted 16 | . 1 . 6 . . . 5 . 2 . . . . . . . . 1 . . . . . . . . . . . . . 1 . . . . Recyclers Shooed 7 | . . . 3 . . . . . 1 . . . . . . . . 1 . . . . . . . 1 . . . . . . . . . 1 Parts Field Recycled . | . . . . . . . . . . . . . . . . . . . . . . . . . . . . . . . . . . . . . Retrieved Matter . | . . . . . . . . . . . . . . . . . . . . . . . . . . . . . . . . . . . . . Parts Self-Destructed . | . . . . . . . . . . . . . . . . . . . . . . . . . . . . . . . . . . . . . Prevented . | . . . . . . . . . . . . . . . . . . . . . . . . . . . . . . . . . . . . . Kills | -11 -10 -10 -9 -9 -9 -8 -8 -8 -8 -7 -7 -7 -7 -6 -6 -6 -6 -6 -6 -5 -5 -5 -5 -5 -5 -4 -4 -3 -3 -3 -3 -2 -2 -2 -1 -1 ------- Run | Scr Mat Min Mat Min Exi Min Mat Gar Mat Fac Gar Fac Gar Fac Was Fac Gar Fac Gar Fac Ext Cet Arc Hub Gar Fac Gar Res Qua Sec Gar Res Tes Gar Acc Com Combat Hostiles Destroyed 510 | . 13 13 36 . 5 9 24 24 42 2 29 . 13 8 4 2 26 8 11 14 15 5 2 1 14 6 7 3 26 29 2 20 14 14 12 57 Melee 9 | . . . . . . . . . . . 3 . . . . 1 2 . 1 1 1 . . . . . . . . . . . . . . . Guns 172 | . 13 13 34 . 1 9 23 17 32 2 11 . 5 4 4 . . . . . 3 1 . . . . . . . . . . . . . . Cannons 169 | . . . . . . . . . . . 1 . . . . 1 8 6 4 11 11 . 1 . 8 5 4 3 18 12 1 12 12 12 9 30 AOE 77 | . . . 2 . 4 . 1 7 10 . 12 . 5 3 . . 15 . 4 2 . 3 . . . . . . . . . . . . . 9 Classes Destroyed 29 | . 6 3 1 . 3 3 . 4 2 . . . 1 . 1 . . . 1 . . . . . . . . . 2 1 . . . . . 1 Worker 17 | . . 1 2 . . 1 4 . 4 . . . . . . . . . . . . . . . . . . . . 3 . . . . 1 1 Builder 8 | . . 1 2 . . . . . 1 . . . . . . 2 . . . . 1 . . . . . . . . . . . 1 . . . Tunneler 1 | . . . . . . 1 . . . . . . . . . . . . . . . . . . . . . . . . . . . . . . Hauler 16 | . 1 . 6 . . . 5 . 2 . . . . . . . . 1 . . . . . . . . . . . . . 1 . . . . Recycler 27 | . 1 1 4 . . 2 3 . 3 . . . . . . . . 2 . . 1 . . . . 1 . . . 3 . . . . 4 2 Mechanic 4 | . . 1 . . . . . . . . . . . . . . . 1 . . . . . . . . . . . . . . . . . 2 Operator 12 | . 2 . 1 . . . 1 . 2 . . . . . . . . . . 1 2 . 2 . . . . . . . . . 1 . . . Turret 1 | . . . . . 1 . . . . . . . . . . . . . . . . . . . . . . . . . . . . . . . Watcher 33 | . 3 . 5 . . . 2 . 5 1 . . . . . . . 1 . . 1 2 . 1 1 . . . 2 1 . . 3 . 2 3 Swarmer 73 | . 3 10 3 . . 3 3 . 5 . 8 . 2 3 . . 10 . . . . 3 . . . . 4 2 1 . . . 4 9 . . Cutter 3 | . . . . . . . . . . . . . 3 . . . . . . . . . . . . . . . . . . . . . . . Saboteur 3 | . . . . . . . . . . . . . . . . . . . 2 1 . . . . . . . . . . . . . . . . Grunt 168 | . 10 3 24 . . 2 8 10 20 2 12 . 8 3 . 1 14 3 5 5 11 . . 1 9 2 . . 2 1 . 2 . . 3 7 Brawler 22 | . . . . . . 1 2 . 4 . 4 . . 1 . . 1 1 2 3 . . . . 1 . . . . . . . . . 1 1 Duelist 8 | . . . . . . . . 2 1 . . . . . . . . 2 1 . . . . . . 1 . . . . . . . . 1 . Protector 3 | . . . . . . . . . 1 . . . . . . . . . . . . . . . . 1 . . . . . . . . . 1 Sentry 58 | . . . 9 . . . 9 7 8 . 4 . . . 1 1 . . 1 . 1 . 2 . 1 . 2 1 . 4 . 3 . . . 4 Specialist 6 | . . . . . . . . 1 1 . . . . . . . . . . . . . . . . . . . 3 . . . . . . 1 Hunter 40 | . . . . . . 2 2 2 1 . . . . . . . 1 . . 1 2 . . . 2 . 2 . 1 4 2 4 . 2 1 11 Programmer 80 | . . . . . . . . 1 . . 1 . . 1 . . . 2 . 4 . . . . . 2 . . 17 12 . 11 9 3 5 12 Heavy 3 | . . . . . . . . . 1 . . . . . . . . . . . . . . . . . . . . . . . . . 1 1 Behemoth 6 | . . . . . . . . 1 . . . . . . . . . . . . 1 . . . 1 . 1 . . 1 . . . . . 1 Compactor 4 | . . . . . . . . . . . . . . . 4 . . . . . . . . . . . . . . . . . . . . . Cetus Guard 2 | . . . . . . . . . . . . . . . . . . . . . . 2 . . . . . . . . . . . . . . S7 Guard 3 | . . . . . . . . . . . . . . . . . . . . . . . . . . . . . . 3 . . . . . . M Guard 2 | . . . . . . . . . . . . . . . . . . . . . . . . . . . . . . . . . . . . 2 Enhanced Q-Series 13 | . . . . . . . . . . . . . . . . . . . . . . . . . . . . . . . . . . . . 13 Combat Programmer 2 | . . . . . . . . . . . . . . . . . . . . . . . . . . . . . . . . . . . . 2 Executioner 2 | . . . . . . . . . . . . . . . . . . . . . . . . . . . . . . 2 . . . . . . Alpha 7 3 | . . . . . . . . . . . . . . . . . . . . . . . . . . . . . 1 2 . . . . . . Fortress 1 | . . . . . . . . . . . . . . . . . . . . . . . . . . . . . 1 . . . . . . . Protovariant L 1 | . . . . . . . . . . . . . . . . . . . . . . . . . . . . . . . . . 1 . . . Zionite 2 | . . . . . 2 . . . . . . . . . . . . . . . . . . . . . . . . . . . . . . . Assembled 4 | . . . . . 4 . . . . . . . . . . . . . . . . . . . . . . . . . . . . . . . Savage 1 | . . . . . . . . . . . . . . . . . . . . . 1 . . . . . . . . . . . . . . . Best Kill Streak 14 | . 4 5 5 . 4 3 5 5 9 2 14 . 2 3 1 3 10 2 3 4 4 3 2 1 3 3 2 2 3 8 2 5 5 9 7 10 Combat Bots Only 14 | . 3 3 4 . 4 3 4 5 9 2 14 . 2 3 1 1 10 2 3 4 3 3 2 1 3 3 2 2 3 4 2 5 4 9 6 9 Max Kills in Single Turn 4 | . 2 2 2 . 2 1 2 2 4 1 3 . 2 1 1 1 3 1 2 2 2 3 1 1 1 1 1 1 1 2 1 1 1 1 1 4 Gunslinging 1 | . 1 1 1 . . . 1 . . . . . . . . . . . . . . . . . . . . . . . . . . . . . Exploded 4 | . . . 2 . 2 . 1 2 4 . 3 . 2 1 . . 3 . 2 2 . 3 . . . . . . . . . . . . . 3 Melee 1 | . . . . . . . . . . . 1 . . . . 1 1 . 1 1 1 . . . . . . . . . . . . . . . Uniques/NPCs Destroyed 6 | . . . . . 4 1 . . . . . . . . . . . . . . . . . . . . . . . . . . . . . 1 8R-AWN (-9/Exiles) EX-HEX (-9/Exiles) EX-DEC (-9/Exiles) EX-BIN (-9/Exiles) ME-RLN (-8/Mines) MAIN.C Shell (-1/Command) Combat | -11 -10 -10 -9 -9 -9 -8 -8 -8 -8 -7 -7 -7 -7 -6 -6 -6 -6 -6 -6 -5 -5 -5 -5 -5 -5 -4 -4 -3 -3 -3 -3 -2 -2 -2 -1 -1 -------- Run | Scr Mat Min Mat Min Exi Min Mat Gar Mat Fac Gar Fac Gar Fac Was Fac Gar Fac Gar Fac Ext Cet Arc Hub Gar Fac Gar Res Qua Sec Gar Res Tes Gar Acc Com Damage Taken 35832 | . 325 481 885 . 1083 645 1043 1691 1401 74 1889 82 300 411 6 638 1613 434 661 446 798 452 77 621 500 437 773 359 3688 3386 325 975 435 1141 486 7271 Core 3772 | . 22 89 80 . 68 109 109 194 105 15 125 18 35 70 . 47 180 10 110 29 36 49 . 23 42 91 13 35 823 266 158 96 9 264 . 452 Absorbed by Shields 12964 | . . . 42 . . . . 106 . . 197 . . . . . . 193 . 472 750 . . . . 399 728 220 24 1470 20 558 445 987 507 5846 Reduced by Siege Mode 1035 | . . . . . . . . . . . . . . . . . 59 . 10 10 44 . . . 35 . 39 . 159 53 11 19 . 6 27 563 Redirected to Core 606 | . . . . . . . . . . . . . . . . . . . . . . . . . . . . . 606 . . . . . . . Redirected to Shielding 93 | . . . . . . . . . . . . . . . . . . . . . . . . . . . . . . . . . 11 6 6 70 Regen/Repaired (Parts) 12038 | . . . 228 . . . 259 . . 160 . . . . . 20 . 475 . 150 139 98 . . . 268 127 233 464 1271 90 2475 174 418 279 4710 Core Remaining (%) 54 | 100 . 55 . . . 35 . . 25 . . . 72 . . . . . 50 . . . . . 82 . 90 . . . . . . 50 . 38 Volleys Fired 2420 | . 50 38 120 . 74 39 89 80 105 4 73 19 62 47 136 16 86 68 158 70 63 20 20 10 65 31 60 28 96 153 6 93 74 38 86 243 Largest 3 | . 2 2 3 . 3 3 3 3 3 3 3 1 1 1 1 2 2 1 2 1 2 2 2 1 2 2 2 1 2 2 1 2 1 1 1 2 Hottest 240 | . 70 95 118 . 69 83 71 85 76 71 90 90 39 90 35 125 180 90 60 60 117 155 170 81 240 162 240 120 240 214 94 214 150 150 150 144 Shots Fired 3550 | . 100 76 349 . 143 115 261 178 301 13 153 18 66 47 131 20 94 67 139 71 82 21 24 10 104 42 76 28 131 148 6 94 74 38 86 244 Gun 1960 | . 100 76 347 . 134 115 258 171 294 13 115 . 28 20 125 5 2 4 96 . 15 19 18 . 3 . 2 . . . . . . . . . Cannon 1224 | . . . . . . . . . . . 15 . 1 4 . 10 57 44 22 54 59 1 3 6 86 36 57 19 122 120 5 93 71 36 69 234 Launcher 79 | . . . 2 . 3 . 3 7 7 . 12 . 5 4 . . 14 1 8 1 1 1 . . . . . . . . . . . . . 10 Special 287 | . . . . . 6 . . . . . 11 18 32 19 6 5 21 18 13 16 7 . 3 4 15 6 17 9 9 28 1 1 3 2 17 . Kinetic 2068 | . 50 38 305 . 134 115 258 171 294 13 115 . 28 20 125 5 2 4 118 54 74 . 15 . . . . . . . . . . . 12 118 Thermal 747 | . 50 38 42 . 6 . . . . . 15 . 1 4 . 10 57 44 . . . 1 6 . 3 16 19 19 117 60 . 60 59 13 44 63 Explosive 79 | . . . 2 . 3 . 3 7 7 . 12 . 5 4 . . 14 1 8 1 1 1 . . . . . . . . . . . . . 10 Electromagnetic 375 | . . . . . . . . . . . . . . . . . . . . . . 19 . 6 86 20 40 . 5 60 5 33 12 23 13 53 Robot Hit Streak 60 | . 9 14 19 . 20 11 28 28 49 9 21 4 9 9 29 6 16 17 47 14 27 11 10 3 12 12 16 5 34 35 8 20 26 10 16 60 Robot Miss Streak 9 | . 3 3 3 . 9 3 3 2 2 1 4 2 4 3 4 2 3 1 6 7 3 2 1 2 4 1 4 3 3 3 1 1 2 1 3 3 Penetration Max 2 | . . . . . 1 . . 2 1 . . . . 1 1 2 . . . . . . . . . . . . . . . . . . . . Secondary Targets 21 | . 2 2 3 . . . 5 2 3 . 4 . . . . . . . . . . . . . . . . . . . . . . . . . Max Gunslinging Chain 1 | . 1 1 1 . . . 1 1 1 . 1 . . . . . . . . . . . . . . . . . . . . . . . . . Shots Hit Robots 2524 | . 66 52 235 . 100 73 213 125 215 12 95 13 35 27 102 20 56 47 104 51 68 15 16 6 55 29 41 10 93 122 4 69 32 31 52 240 Core Hits 1097 | . 33 23 94 . 33 27 78 57 109 5 51 . 13 10 16 5 48 21 48 20 30 12 8 2 15 11 11 5 26 41 3 20 13 12 26 171 Critical Kills 32 | . . . . . 4 1 . 8 1 . 2 . . . . . . 2 2 . 3 . 1 . . . . . 4 1 . 1 1 . . 1 Critical Parts Destroyed 33 | . . . 2 . 6 12 . 3 1 . 2 . 2 . . . 1 . . . 3 . 1 . . . . . . . . . . . . . Critical Strikes 131 | . 3 5 8 . 12 13 2 17 3 . 4 . 2 . 4 . 1 2 5 3 9 2 2 1 1 . . . 5 2 . 1 1 . . 23 Burn 14 | . 3 5 6 . . . . . . . . . . . . . . . . . . . . . . . . . . . . . . . . . Meltdown 10 | . . . . . . . . . . . . . . . . . . 1 . . . . 1 . . . . . 4 1 . 1 1 . . 1 Destroy 64 | . . . 2 . 11 13 2 17 3 . 2 . 1 . 4 . . . 2 . 6 . 1 . . . . . . . . . . . . . Blast 28 | . . . . . . . . . . . . . . . . . . . 3 3 3 . . . . . . . . . . . . . . 19 Corrupt 8 | . . . . . . . . . . . . . . . . . . . . . . 2 . 1 1 . . . . 1 . . . . . 3 Smash 5 | . . . . . . . . . . . 2 . 1 . . . 1 1 . . . . . . . . . . . . . . . . . . Sever 1 | . . . . . 1 . . . . . . . . . . . . . . . . . . . . . . . . . . . . . . . Impale 1 | . . . . . . . . . . . . . . . . . . . . . . . . . . . . . 1 . . . . . . . Melee Attacks 193 | . 1 . 7 . . . . 10 2 4 22 1 11 3 4 17 11 11 27 10 8 . . 3 . 4 . . 12 8 . . . . . 17 Kinetic 33 | . . . . . . . . . . . . . . . . . . . . . . . . . . . . . 8 8 . . . . . 17 Impact 131 | . 1 . 7 . . . . 10 2 4 22 1 11 3 4 17 11 11 27 . . . . . . . . . . . . . . . . . Slashing . | . . . . . . . . . . . . . . . . . . . . . . . . . . . . . . . . . . . . . Piercing 29 | . . . . . . . . . . . . . . . . . . . . 10 8 . . 3 . 4 . . 4 . . . . . . . Sneak Attacks 34 | . . . . . . . . . . . 8 . 3 1 4 1 3 3 1 1 5 . . . . 1 . . . 2 . . . . . 1 Combat Hostiles 20 | . . . . . . . . . . . 8 . 3 1 . . 3 . 1 . 2 . . . . . . . . 2 . . . . . . Follow-up Attacks 1 | . . . . . . . . . . . . . . . . . . . . . . . . . . . . . 1 . . . . . . . Damage Inflicted 84229 | . 835 722 3638 . 1697 1067 3446 2705 5091 234 3185 . 1442 774 2986 766 3110 1771 3373 2184 2943 723 469 238 1830 1152 1034 299 4175 4613 186 3551 1926 1407 2389 18268 Guns 24258 | . 835 722 3496 . 1524 1067 3229 1874 3754 171 1190 . 474 435 2715 167 52 45 1628 . 102 415 363 . . . . . . . . . . . . . Cannons 42422 | . . . . . . . . . . . 73 . . 41 . 168 1221 1117 526 1621 2063 . 106 177 1708 943 1034 299 3873 3974 186 3551 1785 1407 2389 14160 Explosions 11811 | . . . 142 . 168 . 217 831 1337 . 1310 . 510 208 . . 1363 226 862 178 113 308 . . 122 139 . . . 275 . . 133 . . 3369 Melee 5635 | . . . . . . . . . . 63 607 . 458 90 271 404 474 383 357 385 665 . . 59 . 70 . . 302 341 . . . . . 706 Ramming 98 | . . . . . . . . . . . 5 . . . . 27 . . . . . . . 2 . . . . . 23 . . 8 . . 33 Kinetic 37476 | . 384 289 2809 . 1524 1067 3229 1874 3754 171 1190 . 474 435 2715 167 52 45 2154 1621 2165 . 363 . . . . . 257 341 . . . . 575 9821 Thermal 20263 | . 451 433 687 . 5 . . . . . 73 . . 41 . 168 1221 1117 . . 101 . 106 . 122 496 280 299 3702 2446 . 2241 1419 629 1300 2926 Explosive 11247 | . . . 142 . 168 . 217 831 1337 . 1310 . 510 208 . . 1363 226 862 178 12 308 . . . 73 . . . . . . 133 . . 3369 Electromagnetic 10814 | . . . . . . . . . . . . . . . . . . . . . . 415 . 177 1708 513 754 . 171 1803 186 1310 366 778 514 2119 Impact 3107 | . . . . . . . . . . 63 607 . 458 90 271 404 474 383 357 . . . . . . . . . . . . . . . . . Slashing . | . . . . . . . . . . . . . . . . . . . . . . . . . . . . . . . . . . . . . Piercing 1224 | . . . . . . . . . . . . . . . . . . . . 385 665 . . 59 . 70 . . 45 . . . . . . . Highest Corruption 62 | . . . . . 7 15 . . . 5 14 14 14 . 49 49 49 59 62 3 3 3 5 . . 2 2 1 23 23 23 . . . . . Average Corruption 22 | . . . . . 6 14 . . . 5 11 14 14 . 32 49 49 54 59 2 3 3 4 . . 1 2 1 12 23 23 . . . . . Corruption Purged 5 | . . . . . . . . . . . . . . . . . . . . . . . 5 . . . . . . . . . . . . . Corruption Blocked 15 | . . . . . . . . . . . . . . . . . . . . . . . . . . . . . . 15 . . . . . . Effects 957 | . . . . . 11 40 . . . 7 126 19 66 . 46 35 86 102 146 7 23 3 11 . . 10 18 3 78 115 5 . . . . . Message Errors 218 | . . . . . 1 7 . . . 3 31 3 15 . 16 5 22 33 26 . 4 . 3 . . 2 3 . 18 25 1 . . . . . Matter Fused 223 | . . . . . 5 8 . . . 1 32 3 15 . 9 10 14 27 36 2 11 2 2 . . 2 5 . 12 25 2 . . . . . Heat Flow Errors 130 | . . . . . . 7 . . . 1 21 5 8 . 5 6 12 11 19 1 4 . 2 . . 1 . . 14 12 1 . . . . . Energy Discharges 102 | . . . . . . 5 . . . . 10 1 7 . 1 5 12 12 17 . 2 1 1 . . . 2 3 11 12 . . . . . . Parts Rejected 15 | . . . . . . 1 . . . . 2 . 1 . 1 1 2 . . 1 . . . . . 1 . . . 5 . . . . . . Data Loss (minor) 94 | . . . . . 2 5 . . . 1 11 4 7 . 3 3 6 6 14 1 1 . 1 . . 2 4 . 7 16 . . . . . . Data Loss (major) 36 | . . . . . . . . . . . 4 . 7 . 1 1 6 3 3 . . . 1 . . . 1 . 4 5 . . . . . . Misfires 45 | . . . . . 3 3 . . . 1 9 . 5 . 2 1 4 4 4 1 . . 1 . . 2 2 . 2 1 . . . . . . Alerts 20 | . . . . . . . . . . . 5 2 . . 1 1 1 1 2 1 . . . . . . 1 . 3 2 . . . . . . Misdirections 9 | . . . . . . . . . . . 1 . . . . 1 . . 1 . . . . . . . . . . 5 1 . . . . . Weapon Failures 65 | . . . . . . 4 . . . . . 1 1 . 7 1 7 5 24 . 1 . . . . . . . 7 7 . . . . . . Overload Shots 9 | . . . . . . . . . . . . . . . . . . . . . . . . . 3 . 2 . . . . . 2 1 1 . Effects 1 | . . . . . . . . . . . . . . . . . . . . . . . . . . . . . . . . . . 1 . . Heat Surge 1 | . . . . . . . . . . . . . . . . . . . . . . . . . . . . . . . . . . 1 . . Overflow Damage 3530 | . . . 2 . 40 . . . 35 13 151 . 298 73 48 53 303 218 70 126 296 20 . 9 61 36 102 . 179 247 . 288 232 113 199 318 Projectiles 1849 | . . . . . . . . . . . . . . . . 21 4 68 4 97 67 . . . 35 36 102 . 179 200 . 288 221 113 199 215 Explosions 375 | . . . 2 . 40 . . . 35 . 22 . 45 26 . . 25 52 5 . . 20 . . 26 . . . . 47 . . 11 . . 19 Melee 1306 | . . . . . . . . . . 13 129 . 253 47 48 32 274 98 61 29 229 . . 9 . . . . . . . . . . . 84 Knockbacks 70 | . . . . . . . . . . 1 . . 4 1 . 3 1 1 . 11 13 . . . . . . . . . . . . . 7 28 Impact 11 | . . . . . . . . . . 1 . . 4 1 . 3 1 1 . . . . . . . . . . . . . . . . . . Kinetic 55 | . . . . . . . . . . . . . . . . . . . . 11 10 . . . . . . . . . . . . . 6 28 Secondary 4 | . . . . . . . . . . . . . . . . . . . . . 3 . . . . . . . . . . . . . 1 . Self-Inflicted Damage 735 | . . . . . . . 24 83 . . 25 . 27 44 . . 62 . 13 8 41 . . . 44 40 . . . 43 . . 83 . . 198 Shots 20 | . . . . . . . 1 4 . . 1 . 1 1 . . 2 . 1 1 1 . . . 1 1 . . . 1 . . 1 . . 3 Rammed 7 | . . . . . . . . . . . 2 . . . . 1 . . . . . . . 1 . . . . . 1 . . . . . 2 Targets Rammed 8 | . . . . . . . . . . . 2 . . . . 1 . . . . . . . 1 . . . . . 1 . . 1 . . 2 Kicked . | . . . . . . . . . . . . . . . . . . . . . . . . . . . . . . . . . . . . . Crushed 1 | . . . . . . . . . . . . . . . . . . . . . . . . . . . . . . . . . 1 . . . Highest Temperature 440 | . 63 199 186 . 221 218 201 273 191 183 440 254 277 241 225 315 203 281 240 216 311 198 191 191 192 135 192 195 223 264 160 233 8 235 152 218 Average Temperature 81 | . 18 70 43 . 85 69 62 88 60 55 115 108 80 102 94 119 86 128 82 73 112 87 72 90 94 39 33 84 101 81 83 65 6 108 68 48 Received Heat Transfer 5322 | . 159 135 423 . . 36 396 426 558 45 679 18 36 36 . 300 384 86 183 73 222 54 9 117 120 14 36 9 102 190 18 30 . 16 45 367 Effects 13 | . . . . . . . . 1 . . 8 . . . . 1 . . . . 2 . . . . . . . 1 . . . . . . . Shutdowns 2 | . . . . . . . . . . . 2 . . . . . . . . . . . . . . . . . . . . . . . . . Energy Bleed 4 | . . . . . . . . 1 . . 1 . . . . 1 . . . . . . . . . . . . 1 . . . . . . . Interference 4 | . . . . . . . . . . . 3 . . . . . . . . . 1 . . . . . . . . . . . . . . . Matter Decay 1 | . . . . . . . . . . . 1 . . . . . . . . . . . . . . . . . . . . . . . . . Short Circuit 2 | . . . . . . . . . . . 1 . . . . . . . . . 1 . . . . . . . . . . . . . . . Siege Activations 49 | . . . . . . . . . . . . . . . . . 4 . 2 4 3 1 . . 3 . 1 . 5 7 1 4 . 1 2 11 Total Turns 1146 | . . . . . . . . . . . . . . . . . 95 . 22 116 91 9 . . 90 . 53 . 85 119 6 46 . 16 57 341 Longest Duration 91 | . . . . . . . . . . . . . . . . . 59 . 21 59 54 9 . . 76 . 53 . 33 33 6 16 . 16 41 91 Robots Corrupted 60 | . . . . . . . . . . . . . . . . . . . . . . 1 . 1 6 2 4 . 1 13 1 8 3 2 3 15 Combat Hostiles 54 | . . . . . . . . . . . . . . . . . . . . . . 1 . 1 6 1 3 . 1 13 1 7 1 2 3 14 Parts Fried 126 | . . . . . . . . . . 1 3 . 1 . 1 . 1 8 1 . . 1 . 4 8 4 5 . . 23 4 12 13 6 4 26 Impact Corruptions 24 | . . . . . . . . . . 1 3 . 5 2 1 1 4 4 2 . . . . . . . . . . . . . . . . 1 Robots Melted 12 | . . . . . . . . . . . . . . . . . 1 1 . . . . 1 . . . . . 5 1 . 1 1 . . 1 Combat Hostiles 10 | . . . . . . . . . . . . . . . . . . 1 . . . . 1 . . . . . 5 1 . 1 1 . . . Parts Melted 65 | . 4 1 4 . . . . 1 . . 1 . . . . . 2 2 . . . . 1 . . . . 6 16 3 . 6 8 3 . 7 Heat Transferred 19684 | . 1554 1443 1591 . 45 . . . . . 100 . . 50 . 222 1898 1377 . . . . 111 . 150 470 296 259 2812 1693 . 1443 938 383 888 1961 Parts Sabotaged 9 | . . . . . . . . . . . . . . . . . . . 7 2 . . . . . . . . . . . . . . . . Parts Stolen . | . . . . . . . . . . . . . . . . . . . . . . . . . . . . . . . . . . . . . Parts Stripped . | . . . . . . . . . . . . . . . . . . . . . . . . . . . . . . . . . . . . . Power Chain Reactions 5 | . . . . . . . . . . . . . . . . . . . . . . . . . 2 1 . . . 2 . . . . . . Missiles Intercepted . | . . . . . . . . . . . . . . . . . . . . . . . . . . . . . . . . . . . . . Alert | -11 -10 -10 -9 -9 -9 -8 -8 -8 -8 -7 -7 -7 -7 -6 -6 -6 -6 -6 -6 -5 -5 -5 -5 -5 -5 -4 -4 -3 -3 -3 -3 -2 -2 -2 -1 -1 ------- Run | Scr Mat Min Mat Min Exi Min Mat Gar Mat Fac Gar Fac Gar Fac Was Fac Gar Fac Gar Fac Ext Cet Arc Hub Gar Fac Gar Res Qua Sec Gar Res Tes Gar Acc Com Peak Influence 2356 | . 174 253 418 109 . 150 420 1865 1326 588 2356 1303 1062 730 247 63 1001 814 1852 1135 247 423 306 302 1216 877 1199 738 489 608 511 569 713 1003 619 748 Initial 1236 | . . . . 109 . . 11 273 908 536 290 1236 415 557 215 . 10 525 569 972 44 123 169 . 184 638 610 674 330 229 456 287 319 534 601 72 Average 576 | . 61 92 227 100 . 39 164 968 1033 544 1297 1082 777 612 144 26 579 545 1126 765 148 285 164 99 653 694 869 666 313 319 492 371 436 826 142 257 Maximum Alert Level 5 | . . 1 2 . . . 2 5 4 2 5 4 3 3 1 . 3 3 5 4 1 2 1 1 4 3 4 3 2 2 2 2 3 3 2 3 Low Security (%) 26 | 100 100 92 40 100 . 100 66 . . . . . . . 50 100 16 . . 24 70 51 60 68 4 . . . 19 25 . . . . 88 57 Level 1 17 | . . 7 53 . . . 31 8 . 8 6 . . 1 50 . 3 19 . 1 29 9 39 31 19 . . . 52 35 . 52 48 . 2 30 Level 2 20 | . . . 6 . . . 1 26 1 91 4 13 33 79 . . 45 61 10 5 . 38 . . 37 69 17 55 28 38 100 47 50 20 8 8 Level 3 21 | . . . . . . . . 33 49 . 26 19 66 19 . . 34 19 44 63 . . . . 30 30 80 44 . . . . . 79 . 3 Level 4 10 | . . . . . . . . 19 49 . 36 67 . . . . . . 37 5 . . . . 7 . 2 . . . . . . . . . Level 5 3 | . . . . . . . . 11 . . 27 . . . . . . . 7 . . . . . . . . . . . . . . . . . High Security . | . . . . . . . . . . . . . . . . . . . . . . . . . . . . . . . . . . . . . Max Security . | . . . . . . . . . . . . . . . . . . . . . . . . . . . . . . . . . . . . . Squads Dispatched 98 | . 3 1 3 . . . 3 . 7 2 . 3 . 3 . . . 8 . 5 3 . . 4 . 7 . 6 9 7 . 5 3 . 6 10 Investigation 11 | . 1 . 1 . . . . . 1 2 . . . . . . . . . 1 1 . . . . . . 1 . . . 1 . . 2 . Extermination 31 | . . . . . . . . . . . . . . 1 . . . 3 . 2 . . . . . 2 . . 7 5 . 2 3 . 1 5 Reinforcement 38 | . 2 . 2 . . . 2 . 4 . . 1 . 2 . . . 2 . 1 2 . . 2 . 1 . 5 2 2 . 2 . . 3 3 Assault 13 | . . 1 . . . . . . 2 . . . . . . . . 3 . 1 . . . . . 4 . . . . . . . . . 2 Garrison 5 | . . . . . . . 1 . . . . 2 . . . . . . . . . . . 2 . . . . . . . . . . . . Intercept . | . . . . . . . . . . . . . . . . . . . . . . . . . . . . . . . . . . . . . Searches Triggered . | . . . . . . . . . . . . . . . . . . . . . . . . . . . . . . . . . . . . . Construction Impeded 4 | . . . . . . . . . . . . . . 2 . . . 1 . . 1 . . . . . . . . . . . . . . . Haulers Reinforced 4 | . . . . . . . . . . . . . . . . . . 1 . . . . . . . 1 . 1 . . . 1 . . . . Active Scanning Responses . | . . . . . . . . . . . . . . . . . . . . . . . . . . . . . . . . . . . . . Cargo Convoy Interrupts . | . . . . . . . . . . . . . . . . . . . . . . . . . . . . . . . . . . . . . Alert ID Control Effect 3 | . . . . . . . . . . . . . . . . . . . . . . . . . . . . 1 . . . . . . 2 . Stealth | -11 -10 -10 -9 -9 -9 -8 -8 -8 -8 -7 -7 -7 -7 -6 -6 -6 -6 -6 -6 -5 -5 -5 -5 -5 -5 -4 -4 -3 -3 -3 -3 -2 -2 -2 -1 -1 --------- Run | Scr Mat Min Mat Min Exi Min Mat Gar Mat Fac Gar Fac Gar Fac Was Fac Gar Fac Gar Fac Ext Cet Arc Hub Gar Fac Gar Res Qua Sec Gar Res Tes Gar Acc Com Distress Signals 58 | . 1 . 3 . . . 2 . 6 . . 1 . 6 . . . . . . 4 2 . 1 . . . 9 . 7 . . 1 . . 15 Communications Jammed 160 | . . . . . . . . . 4 . . . . 10 . . . . . . . . . . . 1 . 15 5 47 . . 20 . 58 . Distress Signals 155 | . . . . . . . . . . . . . . 10 . . . . . . . . . . . . . 15 5 47 . . 20 . 58 . Times Spotted 890 | . 19 19 44 . 44 9 41 23 57 5 36 6 17 25 4 9 32 32 32 19 33 18 9 13 27 24 15 6 33 56 3 22 19 17 30 92 Peak Tracking Total 11 | . 3 4 4 . 11 3 4 4 6 2 5 2 4 5 1 5 10 6 4 5 5 5 1 5 5 10 3 3 4 8 2 4 5 9 4 9 Tactical Retreats 46 | . . . 1 . 17 . 1 . 1 . . . 2 2 . . . 1 1 2 1 . . . 3 2 1 . . 6 . 1 1 3 . . Traps | -11 -10 -10 -9 -9 -9 -8 -8 -8 -8 -7 -7 -7 -7 -6 -6 -6 -6 -6 -6 -5 -5 -5 -5 -5 -5 -4 -4 -3 -3 -3 -3 -2 -2 -2 -1 -1 ------- Run | Scr Mat Min Mat Min Exi Min Mat Gar Mat Fac Gar Fac Gar Fac Was Fac Gar Fac Gar Fac Ext Cet Arc Hub Gar Fac Gar Res Qua Sec Gar Res Tes Gar Acc Com Traps Triggered 59 | . 1 . 3 . . . 1 12 2 . 10 . 2 1 . . 4 1 2 1 . . . . 3 . 7 1 2 . . 1 1 . . 4 Indirectly . | . . . . . . . . . . . . . . . . . . . . . . . . . . . . . . . . . . . . . Trap Hack Attempts . | . . . . . . . . . . . . . . . . . . . . . . . . . . . . . . . . . . . . . Triggered . | . . . . . . . . . . . . . . . . . . . . . . . . . . . . . . . . . . . . . Disarmed 4 | . . . . . . . . . . . . . . . . . . . . . 4 . . . . . . . . . . . . . . . Reprogrammed . | . . . . . . . . . . . . . . . . . . . . . . . . . . . . . . . . . . . . . Reused . | . . . . . . . . . . . . . . . . . . . . . . . . . . . . . . . . . . . . . Traps Extracted . | . . . . . . . . . . . . . . . . . . . . . . . . . . . . . . . . . . . . . Installed . | . . . . . . . . . . . . . . . . . . . . . . . . . . . . . . . . . . . . . Triggered 1 | . . . . . . . . . . . . . . . . . . . . . . . . . . . . . . . . . 1 . . . Exploded 3 | . . . . . 3 . . . . . . . . . . . . . . . . . . . . . . . . . . . . . . . Machines | -11 -10 -10 -9 -9 -9 -8 -8 -8 -8 -7 -7 -7 -7 -6 -6 -6 -6 -6 -6 -5 -5 -5 -5 -5 -5 -4 -4 -3 -3 -3 -3 -2 -2 -2 -1 -1 ---------- Run | Scr Mat Min Mat Min Exi Min Mat Gar Mat Fac Gar Fac Gar Fac Was Fac Gar Fac Gar Fac Ext Cet Arc Hub Gar Fac Gar Res Qua Sec Gar Res Tes Gar Acc Com Machines Disabled 103 | . . . 2 . 10 . 2 2 3 . 5 2 2 3 . . 6 5 9 2 3 . 4 1 6 3 5 . 7 12 . . 5 1 1 2 Max in Single Turn 2 | . . . 1 . 1 . 1 1 1 . 1 . 1 1 . . 1 1 2 1 2 . 1 . 1 2 1 . 1 1 . . 1 1 1 1 Garrison Access 5 | . . . . . . . . . . . . . . . . . . 1 . . . . . . . . . 1 . . . 1 . . 2 . Garrison Relay 24 | . . . . . . . . 1 . . 4 . 2 . . . 4 . 4 . . . . . 4 . 4 . . . . . . 1 . . Phase Generator 1 | . . . . . . . . . . . . . . . . . . . 1 . . . . . . . . . . . . . . . . . Energy Cycler 1 | . . . . . . . . . . . . . . . . . . . . . 1 . . . . . . . . . . . . . . . Machines Sabotaged . | . . . . . . . . . . . . . . . . . . . . . . . . . . . . . . . . . . . . . Overloaded Fab Kills . | . . . . . . . . . . . . . . . . . . . . . . . . . . . . . . . . . . . . . Hacking | -11 -10 -10 -9 -9 -9 -8 -8 -8 -8 -7 -7 -7 -7 -6 -6 -6 -6 -6 -6 -5 -5 -5 -5 -5 -5 -4 -4 -3 -3 -3 -3 -2 -2 -2 -1 -1 --------- Run | Scr Mat Min Mat Min Exi Min Mat Gar Mat Fac Gar Fac Gar Fac Was Fac Gar Fac Gar Fac Ext Cet Arc Hub Gar Fac Gar Res Qua Sec Gar Res Tes Gar Acc Com Machines Accessed 126 | . 6 1 15 . 1 . 11 5 10 4 3 2 1 1 . 2 3 7 2 3 3 . . 2 3 3 5 2 6 2 . 3 7 1 8 4 Terminals 91 | . 6 1 11 . . . 6 5 10 1 3 1 1 . . 1 3 2 2 2 3 . . 1 3 1 5 . 5 1 . 1 6 1 6 3 Fabricators 5 | . . . . . . . . . . 2 . . . 1 . . . 1 . . . . . . . 1 . . . . . . . . . . Repair Stations 6 | . . . 2 . . . 1 . . . . . . . . . . 1 . . . . . . . . . 1 1 . . . . . . . Recycling Units 6 | . . . 1 . . . 2 . . . . . . . . . . 1 . 1 . . . . . . . . . . . . . . . 1 Scanalyzers 3 | . . . 1 . . . 1 . . . . . . . . . . . . . . . . . . . . . . . . 1 . . . . Garrison Access 14 | . . . . . . . 1 . . 1 . 1 . . . 1 . 2 . . . . . 1 . 1 . 1 . 1 . 1 1 . 2 . Total Hacks 292 | . 24 2 50 . 1 . 35 7 31 12 5 3 1 1 . 2 4 13 2 5 10 . . 3 5 6 10 2 14 3 . 5 17 1 12 6 Successful 159 | . 9 1 30 . 1 . 25 6 13 9 3 2 1 . . 2 . 9 . 2 4 . . 3 2 4 3 1 5 2 . 3 9 1 8 1 Failed 133 | . 15 1 20 . . . 10 1 18 3 2 1 . 1 . . 4 4 2 3 6 . . . 3 2 7 1 9 1 . 2 8 . 4 5 Catastrophic 23 | . . . 3 . . . 1 . 7 . 1 . . . . . 2 1 1 . . . . . 1 1 1 . 1 . . . . . 2 1 Database Lockouts . | . . . . . . . . . . . . . . . . . . . . . . . . . . . . . . . . . . . . . Manual 79 | . 10 . 17 . . . 6 2 26 5 . 1 . . . 1 . 5 . 3 . . . . . . 1 . . . . . 1 . 1 . Terminals 219 | . 24 2 37 . . . 17 7 31 3 5 2 1 . . 1 4 3 2 4 10 . . 2 5 3 10 . 10 2 . 3 15 1 10 5 Fabricators 11 | . . . . . . . . . . 6 . . . 1 . . . 2 . . . . . . . 2 . . . . . . . . . . Repair Stations 23 | . . . 8 . . . 7 . . . . . . . . . . 3 . . . . . . . . . 1 4 . . . . . . . Recycling Units 11 | . . . 2 . . . 5 . . . . . . . . . . 2 . 1 . . . . . . . . . . . . . . . 1 Scanalyzers 8 | . . . 3 . . . 4 . . . . . . . . . . . . . . . . . . . . . . . . 1 . . . . Garrison Access 19 | . . . . . . . 2 . . 3 . 1 . . . 1 . 3 . . . . . 1 . 1 . 1 . 1 . 1 2 . 2 . Terminal Hacks 86 | . 9 1 15 . 1 . 11 4 7 1 3 1 1 . . . . . . 1 4 . . 2 2 1 2 . 3 1 . 1 8 1 5 1 Record 1 | . . . . . 1 . . . . . . . . . . . . . . . . . . . . . . . . . . . . . . . Robot Schematic 1 | . 1 . . . . . . . . . . . . . . . . . . . . . . . . . . . . . . . . . . . Robot Analysis 5 | . 3 . . . . . 1 . . . . . . . . . . . . . . . . . . . . . 1 . . . . . . . Prototype ID Bank 9 | . 2 . 3 . . . 1 . 1 . . . . . . . . . . . 1 . . . . . . . . . . . 1 . . . Open Door 4 | . . . . . . . . 1 . . . . . . . . . . . . . . . . . . . . . . . . . . 2 1 Branch Access Points 1 | . . . . . . . . . . . . . . . . . . . . . . . . . . . . . . . . 1 . . . . Emergency Access Points 5 | . . . . . . . . 1 . . 1 . 1 . . . . . . . . . . . 1 . 1 . . . . . . . . . Machine Index 1 | . . . . . . . . . . . . . . . . . . . . . . . . . . . . . . . . . 1 . . . Terminal Index 5 | . 1 . 1 . . . 1 . . . . . . . . . . . . . . . . . . . . . 1 . . . . . 1 . Fabricator Index 1 | . . . . . . . . . . . . . . . . . . . . . . . . . . . . . . . . . . . 1 . Scanalyzer Index 1 | . . . 1 . . . . . . . . . . . . . . . . . . . . . . . . . . . . . . . . . Alert Level 1 | . . . . . . . 1 . . . . . . . . . . . . . . . . . . . . . . . . . . . . . Unreport Threat 10 | . . . 3 . . . . . 3 . . . . . . . . . . 1 . . . . . . . . 1 1 . . . . 1 . Locate Traps 9 | . 1 . 2 . . . . . . 1 . 1 . . . . . . . . 1 . . 1 . . . . . . . . 2 . . . Disarm Traps 1 | . . . . . . . . . . . . . . . . . . . . . 1 . . . . . . . . . . . . . . . Patrol Status 2 | . . . . . . . 1 . . . . . . . . . . . . . . . . . . . . . . . . . 1 . . . Transport Status 1 | . . . . . . . 1 . . . . . . . . . . . . . . . . . . . . . . . . . . . . . Hauler Manifests 3 | . . . 1 . . . 2 . . . . . . . . . . . . . . . . . . . . . . . . . . . . . Registered Components 1 | . . . 1 . . . . . . . . . . . . . . . . . . . . . . . . . . . . . . . . . Zone Layout 17 | . 1 1 3 . . . 3 . 3 . . . . . . . . . . . 1 . . 1 . 1 . . . . . . 3 . . . Garrison Registry 1 | . . . . . . . . 1 . . . . . . . . . . . . . . . . . . . . . . . . . . . . Patrol Navigation 4 | . . . . . . . . . . . 1 . . . . . . . . . . . . . 1 . 1 . . . . . . 1 . . Security Stations 2 | . . . . . . . . 1 . . 1 . . . . . . . . . . . . . . . . . . . . . . . . . Fabricator Hacks 8 | . . . . . . . . . . 4 . . . . . . . 2 . . . . . . . 2 . . . . . . . . . . Network Status 1 | . . . . . . . . . . 1 . . . . . . . . . . . . . . . . . . . . . . . . . . Load Schematic 4 | . . . . . . . . . . 2 . . . . . . . 1 . . . . . . . 1 . . . . . . . . . . Build 3 | . . . . . . . . . . 1 . . . . . . . 1 . . . . . . . 1 . . . . . . . . . . Repair Station Hacks 16 | . . . 6 . . . 6 . . . . . . . . . . 2 . . . . . . . . . . 2 . . . . . . . Scan Component 8 | . . . 3 . . . 3 . . . . . . . . . . 1 . . . . . . . . . . 1 . . . . . . . Repair 8 | . . . 3 . . . 3 . . . . . . . . . . 1 . . . . . . . . . . 1 . . . . . . . Recycling Unit Hacks 2 | . . . . . . . 2 . . . . . . . . . . . . . . . . . . . . . . . . . . . . . Retrieve Components 2 | . . . . . . . 2 . . . . . . . . . . . . . . . . . . . . . . . . . . . . . Scanalyzer 8 | . . . 3 . . . 4 . . . . . . . . . . . . . . . . . . . . . . . . 1 . . . . Insert Component 6 | . . . 1 . . . 4 . . . . . . . . . . . . . . . . . . . . . . . . 1 . . . . Analyze 2 | . . . 2 . . . . . . . . . . . . . . . . . . . . . . . . . . . . . . . . . Garrison Access Hacks 16 | . . . . . . . 1 . . 2 . 1 . . . 1 . 3 . . . . . 1 . 1 . 1 . 1 . 1 1 . 2 . Unlock Access 10 | . . . . . . . 1 . . 1 . 1 . . . 1 . 2 . . . . . 1 . 1 . . . 1 . . 1 . . . Seal Access 4 | . . . . . . . . . . . . . . . . . . . . . . . . . . . . 1 . . . 1 . . 2 . Coupler Status 2 | . . . . . . . . . . 1 . . . . . . . 1 . . . . . . . . . . . . . . . . . . Unauthorized Hacks 23 | . . . 6 . . . 1 2 6 2 . . . . . 1 . 2 . 1 . . . . . . 1 . . . . . . . 1 . Terminals 16 | . . . 4 . . . . 2 6 . . . . . . 1 . . . 1 . . . . . . 1 . . . . . . . 1 . Assimilate 3 | . . . 2 . . . . . . . . . . . . . . . . . . . . . . . . . . . . . . . 1 . Botnet 9 | . . . 1 . . . . 2 5 . . . . . . . . . . . . . . . . . 1 . . . . . . . . . Operators 4 | . . . 1 . . . . . 1 . . . . . . 1 . . . 1 . . . . . . . . . . . . . . . . Fabricators 1 | . . . . . . . . . . 1 . . . . . . . . . . . . . . . . . . . . . . . . . . Recompile 1 | . . . . . . . . . . 1 . . . . . . . . . . . . . . . . . . . . . . . . . . Repair Stations 1 | . . . . . . . . . . . . . . . . . . 1 . . . . . . . . . . . . . . . . . . Mechanics 1 | . . . . . . . . . . . . . . . . . . 1 . . . . . . . . . . . . . . . . . . Recycling Units 4 | . . . 2 . . . 1 . . . . . . . . . . 1 . . . . . . . . . . . . . . . . . . Reject 1 | . . . 1 . . . . . . . . . . . . . . . . . . . . . . . . . . . . . . . . . Recyclers 3 | . . . 1 . . . 1 . . . . . . . . . . 1 . . . . . . . . . . . . . . . . . . Scanalyzers . | . . . . . . . . . . . . . . . . . . . . . . . . . . . . . . . . . . . . . Garrison Access 1 | . . . . . . . . . . 1 . . . . . . . . . . . . . . . . . . . . . . . . . . Eject 1 | . . . . . . . . . . 1 . . . . . . . . . . . . . . . . . . . . . . . . . . Data Cores Recovered 1 | . 1 . . . . . . . . . . . . . . . . . . . . . . . . . . . . . . . . . . . Used . | . . . . . . . . . . . . . . . . . . . . . . . . . . . . . . . . . . . . . Hacking Detections 99 | . 6 1 12 . . . 9 3 10 3 3 1 . 1 . 1 3 3 2 3 3 . . 1 2 1 5 1 6 2 . 1 7 . 5 4 Full Trace Events 3 | . . . . . . . . . . . . . . . . . . . . . . . . . . . . . . . . 1 . . 2 . Feedback Events . | . . . . . . . . . . . . . . . . . . . . . . . . . . . . . . . . . . . . . Feedback Blocked . | . . . . . . . . . . . . . . . . . . . . . . . . . . . . . . . . . . . . . Robot Schematics Acquired 4 | . 1 . . . . . . . . . . . . . . . . . . . . . . . . . . . . 3 . . . . . . Robots Built 3 | . . . . . . . . . . 1 . . . . . . . 1 . . . . . . . 1 . . . . . . . . . . Authchips 3 | . . . . . . . . . . 1 . . . . . . . 1 . . . . . . . 1 . . . . . . . . . . Time 94 | . . . . . . . . . . 27 . . . . . . . 27 . . . . . . . 40 . . . . . . . . . . Total Robot Build Rating 3 | . . . . . . . . . . 1 . . . . . . . 1 . . . . . . . 1 . . . . . . . . . . Part Schematics Acquired 3 | . . . . . . . . . . . . . . . . . . . . . . . . . . . . . . 3 . . . . . . Parts Built . | . . . . . . . . . . . . . . . . . . . . . . . . . . . . . . . . . . . . . Authchips . | . . . . . . . . . . . . . . . . . . . . . . . . . . . . . . . . . . . . . Time . | . . . . . . . . . . . . . . . . . . . . . . . . . . . . . . . . . . . . . Total Part Build Rating . | . . . . . . . . . . . . . . . . . . . . . . . . . . . . . . . . . . . . . Parts Repaired 8 | . . . 3 . . . 3 . . . . . . . . . . 1 . . . . . . . . . . 1 . . . . . . . Time 389 | . . . 84 . . . 229 . . . . . . . . . . 56 . . . . . . . . . . 20 . . . . . . . Parts Recycled . | . . . . . . . . . . . . . . . . . . . . . . . . . . . . . . . . . . . . . Recycled Matter . | . . . . . . . . . . . . . . . . . . . . . . . . . . . . . . . . . . . . . Retrieved Matter . | . . . . . . . . . . . . . . . . . . . . . . . . . . . . . . . . . . . . . Retrieved Components . | . . . . . . . . . . . . . . . . . . . . . . . . . . . . . . . . . . . . . Parts Scanalyzed 1 | . . . 1 . . . . . . . . . . . . . . . . . . . . . . . . . . . . . . . . . Part Schematics Acquired . | . . . . . . . . . . . . . . . . . . . . . . . . . . . . . . . . . . . . . Parts Damaged . | . . . . . . . . . . . . . . . . . . . . . . . . . . . . . . . . . . . . . Bothacking | -11 -10 -10 -9 -9 -9 -8 -8 -8 -8 -7 -7 -7 -7 -6 -6 -6 -6 -6 -6 -5 -5 -5 -5 -5 -5 -4 -4 -3 -3 -3 -3 -2 -2 -2 -1 -1 ------------ Run | Scr Mat Min Mat Min Exi Min Mat Gar Mat Fac Gar Fac Gar Fac Was Fac Gar Fac Gar Fac Ext Cet Arc Hub Gar Fac Gar Res Qua Sec Gar Res Tes Gar Acc Com Used RIF Installer 10 | . . . . . . . . 1 . . 1 . 2 . . . 1 . 1 . . . . . 2 . 1 . . . . . . 1 . . Coupler Efficiency 1 | . . . . . . . . . . . . . 1 . . . . . . . . . . . . . . . . . . . . . . . Signal Jammer 1 | . . . . . . . . . . . . . . . . . . . . . . . . . 1 . . . . . . . . . . . Robot Detection 1 | . . . . . . . . . . . 1 . . . . . . . . . . . . . . . . . . . . . . . . . Patrol Navigation 1 | . . . . . . . . . . . . . . . . . 1 . . . . . . . . . . . . . . . . . . . Alert ID Control 1 | . . . . . . . . . . . . . . . . . . . . . . . . . . . 1 . . . . . . . . . Structural Interface 1 | . . . . . . . . . . . . . . . . . . . . . . . . . 1 . . . . . . . . . . . Autooverride 2 | . . . . . . . . . . . . . . . . . . . 1 . . . . . . . . . . . . . . 1 . . Autoassimilate 1 | . . . . . . . . . . . . . 1 . . . . . . . . . . . . . . . . . . . . . . . Robots Hacked 175 | . . . . . . . . . . . 5 5 17 13 6 3 14 13 8 3 6 1 4 2 13 7 15 8 8 10 1 1 . . 12 . Non-combat 19 | . . . . . . . . . . . . 1 . 1 . 1 . 4 . 2 . . . . . . . 3 1 3 . . . . 3 . Combat 156 | . . . . . . . . . . . 5 4 17 12 6 2 14 9 8 1 6 1 4 2 13 7 15 5 7 7 1 1 . . 9 . Autooverrided 15 | . . . . . . . . . . . . . . . . . . . 1 1 3 . 1 . 1 2 4 . 1 . . . . . 1 . Autoassimilated 17 | . . . . . . . . . . . . . . 3 . . 1 2 1 . . 1 1 1 3 . 1 1 2 . . . . . . . Robot Hacks Applied 208 | . . . . . . . . . . . 7 11 21 15 6 4 14 12 9 15 5 . 2 1 9 5 11 8 8 26 1 1 . . 17 . parse_system 1 | . . . . . . . . . . . . . . . . . . . . . . . . . 1 . . . . . . . . . . . map_walls 1 | . . . . . . . . . . . . . . . . . . . . . . . . . . . . . . 1 . . . . . . find_fabricator 1 | . . . . . . . . . . . . . . 1 . . . . . . . . . . . . . . . . . . . . . . drop_inventory 4 | . . . . . . . . . . . . . . . . . . 2 . . . . . . . . . 1 . . . . . . 1 . purge_threat 24 | . . . . . . . . . . . . 5 . . . . . . . 13 . . . . . . . . . . . . . . 6 . find_terminals 1 | . . . . . . . . . . . . 1 . . . . . . . . . . . . . . . . . . . . . . . . reprogram_traps 1 | . . . . . . . . . . . . 1 . . . . . . . . . . . . . . . . . . . . . . . . block_reporting 2 | . . . . . . . . . . . . . . . . . . . . . . . . . . . . . . . . . . . 2 . map_route 3 | . . . . . . . . . . . . . . . . . . . . . . . . . . . . 1 1 1 . . . . . . redirect_shields 1 | . . . . . . . . . . . . . . . . . . 1 . . . . . . . . . . . . . . . . . . disable_scanner 5 | . . . . . . . . . . . . . . . . . . . . . . . . . . . . . . 5 . . . . . . locate_prototypes 1 | . . . . . . . . . . . . . . . . . . . . . . . . . . . . . . 1 . . . . . . report_prototypes 1 | . . . . . . . . . . . . . . . . . . . . . . . . . . . . . . 1 . . . . . . report_analyses 8 | . . . . . . . . . . . . . . . . . . . . . . . . . . . . . . 8 . . . . . . ignore_targets 6 | . . . . . . . . . . . . . . . 6 . . . . . . . . . . . . . . . . . . . . . find_garrison 4 | . . . . . . . . . . . . 1 . 1 . 1 . 1 . . . . . . . . . . . . . . . . . . reboot_propulsion 1 | . . . . . . . . . . . . . . . . . . . . . . . . . . . . . 1 . . . . . . . scatter_targeting 2 | . . . . . . . . . . . . . . . . . 1 . . . . . . . . . 1 . . . . . . . . . link_complan 1 | . . . . . . . . . . . . . . . . . . . . . . . . . . . . . . . . . . . 1 . disrupt_area 3 | . . . . . . . . . . . . . . . . . . . 1 . 1 . . . . . . 1 . . . . . . . . spike_heat 7 | . . . . . . . . . . . . . 1 . . . 1 . . . . . . . . . 1 2 2 . . . . . . . overload_power 4 | . . . . . . . . . . . . . 2 . . . 1 . . . . . . . . . . . . 1 . . . . . . amplify_resonance 37 | . . . . . . . . . . . 1 . 3 2 . . 3 3 2 . . . . . 6 3 4 2 1 1 . 1 . . 5 . wipe_record 3 | . . . . . . . . . . . . . . 2 . . . . . . . . . . . . . . 1 . . . . . . . disable_weapons 1 | . . . . . . . . . . . . . 1 . . . . . . . . . . . . . . . . . . . . . . . reboot_system 33 | . . . . . . . . . . . 4 1 6 5 . 2 3 1 4 1 2 . 1 . . 1 . . 2 . . . . . . . overwrite_iff 17 | . . . . . . . . . . . 1 1 5 3 . . 2 . . . . . 1 . 2 . 1 . . 1 . . . . . . streamctrl_low 3 | . . . . . . . . . . . . . . . . . . . . . . . . . . . . . . 3 . . . . . . formatsys_low 6 | . . . . . . . . . . . . . . . . 1 . . . 1 . . . . . . . 1 . 3 . . . . . . formatsys_high 26 | . . . . . . . . . . . 1 1 3 1 . . 3 4 2 . 2 . . 1 . 1 4 . . . 1 . . . 2 . Relay Couplers Released 121 | . . . . . . . . 8 . 3 23 . 8 . . . 14 4 17 . . . . . 13 . 18 . . 4 . . . 5 4 . Ejected 3 | . . . . . . . . . . 3 . . . . . . . . . . . . . . . . . . . . . . . . . . Machine Destruction 107 | . . . . . . . . 5 . . 19 . 8 . . . 14 4 17 . . . . . 13 . 18 . . . . . . 5 4 . Programmers 11 | . . . . . . . . 3 . . 4 . . . . . . . . . . . . . . . . . . 4 . . . . . . Attached 67 | . . . . . . . . . . . 6 4 7 4 1 1 5 5 5 5 . . . 1 3 2 5 1 3 3 . . . 3 3 . Fabnet Peak Effective % . | . . . . . . . . . . . . . . . . . . . . . . . . . . . . . . . . . . . . . Robots Rewired 31 | . . . . . . . . 2 . . 9 . . . . . . . . . 13 . . . 2 . 4 . . . . . . 1 . . Allies Hacked 7 | . . . . . . . . . . . . . . . . . . 1 . 1 . . . . . 2 2 . . . . . . . 1 . Hacks Repelled . | . . . . . . . . . . . . . . . . . . . . . . . . . . . . . . . . . . . . . Allies | -11 -10 -10 -9 -9 -9 -8 -8 -8 -8 -7 -7 -7 -7 -6 -6 -6 -6 -6 -6 -5 -5 -5 -5 -5 -5 -4 -4 -3 -3 -3 -3 -2 -2 -2 -1 -1 -------- Run | Scr Mat Min Mat Min Exi Min Mat Gar Mat Fac Gar Fac Gar Fac Was Fac Gar Fac Gar Fac Ext Cet Arc Hub Gar Fac Gar Res Qua Sec Gar Res Tes Gar Acc Com Total Allies 126 | . . 2 1 3 . . . 2 . 1 11 2 8 7 . 1 6 7 4 2 19 1 3 2 10 4 14 2 3 5 1 . . 1 4 . Largest Group 8 | . . 1 1 3 3 . . 2 . 1 5 3 2 1 1 1 2 3 3 2 8 8 3 3 6 6 2 1 2 1 1 1 . 1 1 . Highest-Rated Group 323 | . . 31 10 40 40 . . 56 . 14 96 63 64 85 32 23 61 138 154 64 246 246 162 147 258 323 105 40 112 49 47 47 . 148 64 . Highest-Rated Ally 148 | . . 31 10 16 16 . . 31 . 14 32 32 32 85 32 23 41 90 90 41 49 49 64 64 80 116 56 40 56 49 47 47 . 148 64 . Total Orders 32 | . . . . . 1 . . . . 1 . . . . . 1 . 1 6 1 2 . 2 . . 4 . 1 . 5 . . . 1 1 5 STAY 10 | . . . . . 1 . . . . . . . . . . . . . 3 . 1 . 1 . . 1 . . . 1 . . . 1 1 . ROAM 3 | . . . . . . . . . . . . . . . . . . . 1 . . . . . . . . . . . . . . . . 2 FOLLOW 5 | . . . . . . . . . . . . . . . . . . . 2 . 1 . 1 . . . . . . 1 . . . . . . AID 11 | . . . . . . . . . . 1 . . . . . 1 . 1 . 1 . . . . . 3 . 1 . 3 . . . . . . EXPLORE 2 | . . . . . . . . . . . . . . . . . . . . . . . . . . . . . . . . . . . . 2 RETURN 1 | . . . . . . . . . . . . . . . . . . . . . . . . . . . . . . . . . . . . 1 Ally Attacks 618 | . . 20 . . 6 . . 2 . . 41 35 27 31 21 . 29 64 47 . 38 72 5 33 44 47 33 3 13 . 1 . . . 6 . Total Damage 17504 | . . 250 . . 45 . . 22 . . 835 512 503 1206 987 . 691 2487 1593 . 893 1519 160 858 1288 2027 919 116 381 . . . . . 212 . Kills 118 | . . 2 . . . . . . . . 4 3 4 12 2 . 5 17 16 . 8 9 . 10 9 8 5 1 1 . . . . . 2 . Allies Corrupted 7 | . . . . . . . . . . . 2 . . . 1 . . 1 . . . . . . . 1 2 . . . . . . . . . Allies Melted 3 | . . . . . . . . . . . . . . . . . . . . . . . . 1 . 1 . . . . . . . . . 1 Intel | -11 -10 -10 -9 -9 -9 -8 -8 -8 -8 -7 -7 -7 -7 -6 -6 -6 -6 -6 -6 -5 -5 -5 -5 -5 -5 -4 -4 -3 -3 -3 -3 -2 -2 -2 -1 -1 ------- Run | Scr Mat Min Mat Min Exi Min Mat Gar Mat Fac Gar Fac Gar Fac Was Fac Gar Fac Gar Fac Ext Cet Arc Hub Gar Fac Gar Res Qua Sec Gar Res Tes Gar Acc Com Robot Analysis Total 5 | . 3 . . . . . 1 . . . . . . . . . . . . . . . . . . . . . 1 . . . . . . . Derelict Logs Recovered 1 | . . 1 . . . . . . . . . . . . . . . . . . . . . . . . . . . . . . . . . . Drone Launches 3 | . . . . . . . . . . . . . . . . . . . . . . . . . . . . . . . . . . . . 3 Drone Recoveries 1 | . . . . . . . . . . . . . . . . . . . . . . . . . . . . . . . . . . . . 1 Exploration | -11 -10 -10 -9 -9 -9 -8 -8 -8 -8 -7 -7 -7 -7 -6 -6 -6 -6 -6 -6 -5 -5 -5 -5 -5 -5 -4 -4 -3 -3 -3 -3 -2 -2 -2 -1 -1 ------------- Run | Scr Mat Min Mat Min Exi Min Mat Gar Mat Fac Gar Fac Gar Fac Was Fac Gar Fac Gar Fac Ext Cet Arc Hub Gar Fac Gar Res Qua Sec Gar Res Tes Gar Acc Com Turns Passed 50734 | 5 1497 1061 2386 212 2004 902 2395 3060 3621 484 3499 460 1626 866 800 556 1504 1830 2204 887 1464 393 946 242 1950 765 1841 562 2093 2162 90 968 1117 401 964 2917 Spaces Moved 21021 | 1 816 582 1078 133 765 311 847 1303 1433 187 1190 160 558 295 204 186 676 671 869 308 670 150 103 114 821 261 686 290 989 1038 122 439 616 301 441 1407 Core 21 | . . . . . . . . . . . . . . . . . . . . . . . 21 . . . . . . . . . . . . . Treads 14920 | 1 816 582 1078 133 765 311 829 6 . . . . . 129 204 186 676 8 640 308 670 150 82 114 821 261 686 290 989 1038 43 439 616 201 441 1407 Legs . | . . . . . . . . . . . . . . . . . . . . . . . . . . . . . . . . . . . . . Wheels 5901 | . . . . . . . 18 1297 1433 187 1190 160 558 166 . . . 663 229 . . . . . . . . . . . . . . . . . Hover . | . . . . . . . . . . . . . . . . . . . . . . . . . . . . . . . . . . . . . Flight . | . . . . . . . . . . . . . . . . . . . . . . . . . . . . . . . . . . . . . Fastest Speed 135 | 160 160 160 160 160 160 240 160 165 210 225 225 255 240 240 240 240 160 160 160 160 160 160 160 160 160 160 160 160 160 135 135 135 135 135 135 135 Average Speed 189 | 160 160 160 160 160 227 240 206 197 224 225 248 255 246 241 241 240 165 221 183 166 162 222 644 163 177 220 227 160 160 143 135 135 135 135 135 137 Slowest Speed 2500 | 160 160 160 240 160 240 240 240 255 225 225 255 255 255 255 242 240 240 240 240 240 240 240 2500 240 240 240 240 160 160 160 135 135 135 135 215 151 Overloaded Moves . | . . . . . . . . . . . . . . . . . . . . . . . . . . . . . . . . . . . . . Propulsion Burnouts . | . . . . . . . . . . . . . . . . . . . . . . . . . . . . . . . . . . . . . Robots Hopped . | . . . . . . . . . . . . . . . . . . . . . . . . . . . . . . . . . . . . . Cave-ins Triggered . | . . . . . . . . . . . . . . . . . . . . . . . . . . . . . . . . . . . . . Teleports 1 | . . . . . . . . . . . . . . . . . . . . . . . . . . . . . . 1 . . . . . . Microwarps 7 | . . . . . . . . . . . . . . . . . . . . . . . . . . . . . . . 2 . . 5 . . Exploration Rate (%) 52 | 2 99 96 96 24 73 83 67 95 93 8 87 5 52 14 95 3 68 24 78 9 84 55 68 23 86 8 93 12 75 58 15 14 89 34 18 43 Regions Visited 36 Branch Regions 12 Pre-discovered Areas 2 | . . 1 . . 1 . . . . . . . . . . . . . . . . . . . . . . . . . . . . . . . Known Exits Taken 11 | . . . . . . . 1 . . 1 . 1 . . . 1 . 1 . . . . . 1 . 1 . 1 . 1 . 1 1 . . . Unknown Exits Taken 14 | 1 1 1 1 1 1 1 . . 1 . . . . . . . . . . 1 1 1 1 . . . . . 1 . . . . . 1 . Scrap Searched 2 | . . 1 . . . 1 . . . . . . . . . . . . . . . . . . . . . . . . . . . . . . Spaces Dug 205 | . 1 . 16 . . . . 4 1 2 5 1 36 2 . 3 13 5 12 5 15 . . 2 . 7 . 6 7 7 . 17 24 1 11 2 Terrain Destroyed 870 | . 1 . 29 . 29 10 20 39 57 2 40 1 47 40 20 5 33 24 143 46 44 20 2 2 14 22 3 12 29 20 . 21 71 3 14 7 Melee 48 | . 1 . 6 . . . . 4 1 2 4 1 . 2 . 2 . 5 11 1 1 . . 2 . 3 . . 2 . . . . . . . Projectile 256 | . . . 3 . 11 10 . 6 2 . 2 . 3 7 20 3 1 5 8 29 13 1 2 . . 5 3 12 27 9 . 21 29 3 14 7 AOE 565 | . . . 20 . 18 . 20 29 54 . 34 . 44 31 . . 32 14 124 16 29 19 . . 14 14 . . . 11 . . 42 . . . Terrain Rammed . | . . . . . . . . . . . . . . . . . . . . . . . . . . . . . . . . . . . . . Walls Destroyed . | . . . . . . . . . . . . . . . . . . . . . . . . . . . . . . . . . . . . . Machines Disabled . | . . . . . . . . . . . . . . . . . . . . . . . . . . . . . . . . . . . . . Actions | -11 -10 -10 -9 -9 -9 -8 -8 -8 -8 -7 -7 -7 -7 -6 -6 -6 -6 -6 -6 -5 -5 -5 -5 -5 -5 -4 -4 -3 -3 -3 -3 -2 -2 -2 -1 -1 --------- Run | Scr Mat Min Mat Min Exi Min Mat Gar Mat Fac Gar Fac Gar Fac Was Fac Gar Fac Gar Fac Ext Cet Arc Hub Gar Fac Gar Res Qua Sec Gar Res Tes Gar Acc Com Total 28682 | 6 904 641 1482 132 923 376 1310 1642 1642 236 1605 200 730 395 370 242 941 929 1256 562 926 197 370 156 1233 398 889 359 1347 1549 70 715 825 296 719 2109 Wait 3256 | . 15 8 183 . 44 2 297 93 59 23 104 14 44 22 6 16 111 136 131 142 93 8 242 18 279 66 59 28 149 213 14 134 86 22 135 260 Move 20820 | . 815 581 1077 132 764 310 847 1302 1432 186 1189 160 557 295 203 186 675 671 868 307 669 149 102 114 820 261 685 289 988 1038 44 438 615 204 440 1407 Hop . | . . . . . . . . . . . . . . . . . . . . . . . . . . . . . . . . . . . . . Pick Up 335 | . 13 2 18 . 16 8 23 11 10 5 24 . 12 5 5 . 14 8 16 4 9 4 1 3 13 4 11 4 20 23 . 9 10 3 11 16 Fast Attach 181 | . 3 3 16 . 1 1 7 5 3 . 7 . 2 2 4 1 4 3 12 5 3 4 . . 5 3 7 2 18 15 . . 4 6 3 32 Attach 193 | 2 1 1 3 . 9 1 2 5 1 6 8 2 4 8 . . 7 8 6 7 7 2 1 1 6 6 2 2 8 25 3 11 3 4 11 20 Detach 89 | . . . . . . . . . . 1 3 . 3 . 2 . 1 3 3 4 5 . . . 3 2 . . 9 16 3 7 1 7 3 13 Swap 464 | . 3 3 26 . 8 11 16 28 16 5 26 2 13 8 3 5 20 11 18 9 16 3 3 4 17 14 20 3 15 26 . 20 16 3 18 55 Drop 397 | 4 3 5 32 . 7 4 29 16 14 2 26 2 6 5 7 . 8 10 17 4 6 7 1 2 12 7 11 3 34 31 . 3 15 9 11 44 Fire 2420 | . 50 38 120 . 74 39 89 80 105 4 73 19 62 47 136 16 86 68 158 70 63 20 20 10 65 31 60 28 96 153 6 93 74 38 86 243 Melee 191 | . 1 . 7 . . . . 10 2 4 22 1 11 3 4 17 11 11 27 10 8 . . 3 . 4 . . 10 8 . . . . . 17 Ram . | . . . . . . . . . . . . . . . . . . . . . . . . . . . . . . . . . . . . . Kick . | . . . . . . . . . . . . . . . . . . . . . . . . . . . . . . . . . . . . . Crush 8 | . . . . . . . . . . . 2 . . . . 1 . . . . . . . 1 . . . . . 1 . . 1 . . 2 Escape Stasis 144 | . . . . . . . . 71 . . 43 . 16 . . . 4 . . . . . . . 4 . 6 . . . . . . . . . Rewire 184 | . . . . . . . . 21 . . 78 . . . . . . . . . 47 . . . 9 . 28 . . . . . . . 1 . Trap . | . . . . . . . . . . . . . . . . . . . . . . . . . . . . . . . . . . . . . Miscellaneous . | . . . . . . . . . . . . . . . . . . . . . . . . . . . . . . . . . . . . . Route ------- -11/Scrapyard -10/Materials (discovered 5 exits: *Mat x3 / *Min x2) -10/Mines (discovered 2 exits: *Mat x2) -9/Materials (discovered 4 exits: *Mat x3 / [*Min]) -9/Mines -9/Exiles -8/Mines (discovered 2 exits: *Mat x2) -8/Materials (discovered 2 exits: *Fac / Gar) -8/Garrison (discovered 3 exits: *Mat x3) -8/Materials (discovered 3 exits: *Fac x3) -7/Factory -7/Garrison (discovered 3 exits: *Fac x3) -7/Factory -7/Garrison (discovered 2 exits: *Fac x2) -6/Factory (discovered 2 exits: *Fac / [*Low]) -6/Waste -6/Factory (discovered 2 exits: *Fac / Gar) -6/Garrison (discovered 4 exits: *Fac x4) -6/Factory (discovered 2 exits: [*Low] / Gar) -6/Garrison (discovered 2 exits: *Fac x2) -5/Factory -5/Extension (discovered 3 exits: *Fac x2 / [*Cet]) -5/Cetus (discovered 2 exits: *Fac / [*Arc]) -5/Archives (discovered 2 exits: *Fac / *Hub) -5/Hub_04(d) (discovered 2 exits: *Fac / Gar) -5/Garrison (discovered 3 exits: *Fac x3) -4/Factory (discovered 2 exits: *Upp / Gar) -4/Garrison (discovered 3 exits: *Res x3) -3/Research -3/Quarantine (discovered 2 exits: *Res / *Sec) -3/Section 7 -3/Garrison -2/Research (discovered 3 exits: *Acc / *Tes x2) -2/Testing (discovered 2 exits: *Acc / Gar) -2/Garrison -1/Access -1/Command (discovered 2 exits: Sur x2) By MAIN.C's Side History --------- Turn | Location | Event 6 | -11/Scrapyard | Discovered new exit (range 0) 6 | -11/Scrapyard | Entered Materials 267 | -10/Materials | Discovered new exit (range 11) 309 | -10/Materials | Build established: Mutant 351 | -10/Materials | Discovered new exit (range 15) 906 | -10/Materials | Discovered new exit (range 12) 1155 | -10/Materials | Discovered new exit (range 8) 1435 | -10/Materials | Discovered new exit (range 16) 1503 | -10/Materials | Entered Mines 1543 | -10/Mines | Discovered new exit (range 7) 1637 | -10/Mines | Received a Mining Laser from a helpful Derelict 1816 | -10/Mines | Discovered new exit (range 6) 1846 | -10/Mines | Found a damaged Exp. Sensor Array with a note attached 1849 | -10/Mines | Found Prototype Device 1952 | -10/Mines | Met a Derelict testing a Signal Generator 2341 | -10/Mines | Learned location of Zion (-7) 2564 | -10/Mines | Entered Materials 2564 | -9/Materials | Evolved 2 slots: Utility x1, Weapon x1 2933 | -9/Materials | Repaired Lgt. Treads 2960 | -9/Materials | Repaired Lgt. Treads 3045 | -9/Materials | Build established: Scavenger-Tank 3538 | -9/Materials | Discovered new exit (range 13) 3551 | -9/Materials | Build established: Tank 3719 | -9/Materials | Discovered new exit (range 14) 3999 | -9/Materials | Build established: Gunner 4235 | -9/Materials | Discovered new exit (range 16) 4469 | -9/Materials | Repaired Imp. Treads 4501 | -9/Materials | Discovered new exit (range 6) 4724 | -9/Materials | Identified Exp. Sensor Array 4950 | -9/Materials | Entered Mines 4950 | -9/Mines | Accompanied by 1 ally 4951 | -9/Mines | Assembled infested the area 4954 | -9/Mines | Met a Derelict bent on vengeance 5024 | -9/Mines | Assisted by bots powering up and referring to "LRC-V3" 5155 | -9/Mines | Deemed a non-threat by the Exiles lab entrance 5155 | -9/Mines | Discovered new exit (range 5) 5162 | -9/Mines | Entered Exiles 5162 | -9/Exiles | Accompanied by 3 allies 5178 | -9/Exiles | Build established: Tank 5201 | -9/Exiles | Met 8R-AWN 5226 | -9/Exiles | Met EX-HEX 5300 | -9/Exiles | Met EX-DEC 6026 | -9/Exiles | Attacked by the Exiles 6178 | -9/Exiles | Lost 3 parts (2u1w) 6217 | -9/Exiles | Destroyed 8R-AWN 6227 | -9/Exiles | Found Prototype Ballistic Gun 6233 | -9/Exiles | Found Prototype Ballistic Gun 6243 | -9/Exiles | Found Prototype Protection 6244 | -9/Exiles | Lost 4 parts (1p1n1u1w) 6246 | -9/Exiles | Found Prototype Processor 6254 | -9/Exiles | Found Prototype Device 6271 | -9/Exiles | Identified AS-neutralizer No. 17b 6337 | -9/Exiles | Identified 8R-AWN's Boregun (x2) 6611 | -9/Exiles | Build established: Mutant 6774 | -9/Exiles | Destroyed EX-HEX 6848 | -9/Exiles | Destroyed EX-DEC 6854 | -9/Exiles | Destroyed EX-BIN 7123 | -9/Exiles | Build established: Gunner 7137 | -9/Exiles | Discovered new exit (range 14) 7166 | -9/Exiles | Entered Mines 7221 | -8/Mines | ME-RLN came to Exiles' defense 7222 | -8/Mines | ME-RLN assimilated allied T-07 Excavator 7230 | -8/Mines | Identified Exp. Targeting Computer 7238 | -8/Mines | System corruption reached 10% 7243 | -8/Mines | ME-RLN assimilated allied T-07 Excavator 7277 | -8/Mines | Destroyed ME-RLN 7291 | -8/Mines | Core integrity fell below 50% 7300 | -8/Mines | Found Prototype Hackware 7303 | -8/Mines | Found Prototype Device 7304 | -8/Mines | Identified ME-RLN's Chromatic Screen 7318 | -8/Mines | Found Prototype Hackware 7327 | -8/Mines | Found Prototype Special Weapon 7983 | -8/Mines | Discovered new exit (range 4) 8046 | -8/Mines | Discovered new exit (range 6) 8068 | -8/Mines | Entered Materials 8068 | -8/Materials | Evolved 2 slots: Propulsion x1, Utility x1 8134 | -8/Materials | Repaired Imp. Assault Rifle 8224 | -8/Materials | Repaired Exp. Heat Sink 8315 | -8/Materials | Repaired Lgt. Neutrino Core 9117 | -8/Materials | Build established: Tank 9303 | -8/Materials | Identified System Mapper 9303 | -8/Materials | Identified Ghost Barrier 9303 | -8/Materials | Identified ME-RLN's Wand 9667 | -8/Materials | Discovered new exit (range 13) 9919 | -8/Materials | Build established: Gunner 10346 | -8/Materials | Garrison activated, responded to threat 10463 | -8/Materials | Identified exit to Garrison 10463 | -8/Materials | Entered Garrison 10723 | -8/Garrison | Triggered checkpoint 10939 | -8/Garrison | Discovered new exit (range 11) 10988 | -8/Garrison | Triggered checkpoint 11298 | -8/Garrison | Triggered checkpoint 11492 | -8/Garrison | Triggered checkpoint 11557 | -8/Garrison | Discovered new exit (range 15) 11857 | -8/Garrison | Build established: Scavenger-Mutant 11975 | -8/Garrison | Learned Materials security intel 11995 | -8/Garrison | Discovered new exit (range 14) 12219 | -8/Garrison | Spotted B-75 Beast 12378 | -8/Garrison | Triggered checkpoint 12525 | -8/Garrison | Build established: Mutant 12614 | -8/Garrison | Core integrity fell below 50% 12658 | -8/Garrison | Destroyed B-75 Beast 12783 | -8/Garrison | Found Imp. Powered Armor 12920 | -8/Garrison | Build established: Scavenger-Gunner 12944 | -8/Garrison | Triggered checkpoint 13272 | -8/Garrison | Discovered new exit (range 59) 13272 | -8/Garrison | Discovered new exit (range 87) 13272 | -8/Garrison | Discovered new exit (range 71) 13285 | -8/Garrison | Build established: Scavenger-Mutant 13505 | -8/Garrison | Installed Relay Interface Framework 13523 | -8/Garrison | Entered Materials 13721 | -8/Materials | Build established: Scavenger-Gunner 14042 | -8/Materials | Discovered new exit (range 16) 14634 | -8/Materials | Discovered new exit (range 16) 15271 | -8/Materials | Discovered new exit (range 16) 15923 | -8/Materials | First assault squad dispatched 16055 | -8/Materials | Destroyed 9 combat bots 17144 | -8/Materials | Entered Factory 17144 | -7/Factory | Evolved 2 slots: Utility x2 17390 | -7/Factory | Fabricated M-13 Machinist (x1) 17585 | -7/Factory | Identified exit to Garrison 17628 | -7/Factory | Entered Garrison 17696 | -7/Garrison | Triggered checkpoint 17731 | -7/Garrison | Garrison Relay disabled 17838 | -7/Garrison | Triggered checkpoint 17904 | -7/Garrison | Triggered checkpoint 17923 | -7/Garrison | Triggered checkpoint 17936 | -7/Garrison | Triggered checkpoint 18045 | -7/Garrison | Destroyed 14 combat bots 18137 | -7/Garrison | Garrison Relay disabled 18337 | -7/Garrison | Discovered new exit (range 13) 18460 | -7/Garrison | Triggered checkpoint 18492 | -7/Garrison | Garrison Relay disabled 18531 | -7/Garrison | Build established: Bothacker-Gunner 18756 | -7/Garrison | Triggered checkpoint 18880 | -7/Garrison | Build established: Bothacker-Mutant 18912 | -7/Garrison | Garrison Relay disabled 18964 | -7/Garrison | Triggered checkpoint 19016 | -7/Garrison | System corruption reached 10% 19238 | -7/Garrison | Discovered new exit (range 14) 19240 | -7/Garrison | Triggered checkpoint 19737 | -7/Garrison | Expanded RIF knowledge: Robot Detection 20251 | -7/Garrison | Discovered new exit (range 15) 20398 | -7/Garrison | Triggered checkpoint 20753 | -7/Garrison | Learned Factory security intel 21127 | -7/Garrison | Entered Factory 21127 | -7/Factory | Accompanied by 3 allies 21425 | -7/Factory | Garrison activated, responded to threat 21587 | -7/Factory | Identified exit to Garrison 21587 | -7/Factory | Entered Garrison 21587 | -7/Garrison | Accompanied by 1 ally 21704 | -7/Garrison | Triggered checkpoint 21728 | -7/Garrison | Garrison Relay disabled 21883 | -7/Garrison | Triggered checkpoint 21889 | -7/Garrison | Triggered checkpoint 21990 | -7/Garrison | Triggered checkpoint 22168 | -7/Garrison | Triggered checkpoint 22451 | -7/Garrison | Discovered new exit (range 9) 22506 | -7/Garrison | Triggered checkpoint 22710 | -7/Garrison | Expanded RIF knowledge: Coupler Efficiency 22979 | -7/Garrison | Discovered new exit (range 14) 23023 | -7/Garrison | Expanded RIF knowledge: Autoassimilate 23058 | -7/Garrison | Garrison Relay disabled 23213 | -7/Garrison | Entered Factory 23213 | -6/Factory | Accompanied by 1 ally 23213 | -6/Factory | Evolved 2 slots: Propulsion x1, Utility x1 23261 | -6/Factory | Discovered new exit (range 9) 23313 | -6/Factory | Build established: Botlord-Mutant 23671 | -6/Factory | Spotted B-75 Beast 23672 | -6/Factory | Autoassimilated Beast 5a with RIF 23919 | -6/Factory | Discovered new exit (range 8) 24079 | -6/Factory | Sucked down chute 24079 | -6/Factory | Entered Waste 24080 | -6/Waste | 1 allies followed down the chute 24094 | -6/Waste | EMP discharged 24094 | -6/Waste | System corruption reached 10% 24105 | -6/Waste | Build established: Bothacker-Mutant 24110 | -6/Waste | Spotted C-40 Crusher 24115 | -6/Waste | Spotted C-40 Crusher 24150 | -6/Waste | Allies destroyed C-40 Crusher 24171 | -6/Waste | Allies destroyed C-40 Crusher 24185 | -6/Waste | Spotted C-40 Crusher 24194 | -6/Waste | EMP discharged 24205 | -6/Waste | Spotted C-40 Crusher 24292 | -6/Waste | Spotted C-40 Crusher 24294 | -6/Waste | EMP discharged 24335 | -6/Waste | Spotted C-40 Crusher 24394 | -6/Waste | EMP discharged 24394 | -6/Waste | System corruption reached 30% 24494 | -6/Waste | EMP discharged 24594 | -6/Waste | EMP discharged 24594 | -6/Waste | Destroyed C-40 Crusher 24615 | -6/Waste | Found Unknown Protection 24615 | -6/Waste | Identified Damper Plating 24632 | -6/Waste | Destroyed C-40 Crusher 24682 | -6/Waste | Destroyed C-40 Crusher 24694 | -6/Waste | EMP discharged 24794 | -6/Waste | EMP discharged 24815 | -6/Waste | Destroyed C-40 Crusher 24817 | -6/Waste | Discovered new exit (range 12) 24879 | -6/Waste | Entered Factory 25013 | -6/Factory | Discovered new exit (range 15) 25435 | -6/Factory | Identified exit to Garrison 25435 | -6/Factory | Entered Garrison 25486 | -6/Garrison | Triggered checkpoint 25549 | -6/Garrison | Garrison Relay disabled 25578 | -6/Garrison | Expanded RIF knowledge: Patrol Navigation 25658 | -6/Garrison | Triggered checkpoint 25676 | -6/Garrison | Triggered checkpoint 25727 | -6/Garrison | Triggered checkpoint 25791 | -6/Garrison | Destroyed 10 combat bots 26003 | -6/Garrison | Discovered new exit (range 11) 26038 | -6/Garrison | Triggered checkpoint 26096 | -6/Garrison | Garrison Relay disabled 26236 | -6/Garrison | Triggered checkpoint 26326 | -6/Garrison | Discovered new exit (range 12) 26366 | -6/Garrison | Triggered checkpoint 26405 | -6/Garrison | Build established: Botlord-Mutant 26421 | -6/Garrison | Garrison Relay disabled 26595 | -6/Garrison | Discovered new exit (range 11) 26651 | -6/Garrison | Triggered checkpoint 26751 | -6/Garrison | Garrison Relay disabled 26833 | -6/Garrison | Triggered checkpoint 26919 | -6/Garrison | Discovered new exit (range 5) 26939 | -6/Garrison | Entered Factory 26939 | -6/Factory | Accompanied by 2 allies 27639 | -6/Factory | First assault squad dispatched 27659 | -6/Factory | Repaired Hvy. Treads 27946 | -6/Factory | Fabricated M-13 Machinist (x1) 27946 | -6/Factory | Assimilated Beast 5b with formatsys_high 28083 | -6/Factory | Identified exit to Garrison 28596 | -6/Factory | Discovered new exit (range 9) 28690 | -6/Factory | P-60 Hacker assimilated allied Angel 5a 28769 | -6/Factory | Identified exit to Garrison 28769 | -6/Factory | Entered Garrison 28769 | -6/Garrison | Accompanied by 2 allies 28996 | -6/Garrison | Phase Generator disabled 29063 | -6/Garrison | Expanded RIF knowledge: Autooverride 29200 | -6/Garrison | Garrison Relay disabled 29322 | -6/Garrison | Triggered checkpoint 29369 | -6/Garrison | Garrison Relay disabled 29975 | -6/Garrison | Triggered checkpoint 30024 | -6/Garrison | Triggered checkpoint 30075 | -6/Garrison | Discovered new exit (range 9) 30226 | -6/Garrison | Triggered checkpoint 30331 | -6/Garrison | Garrison Relay disabled 30408 | -6/Garrison | Triggered checkpoint 30490 | -6/Garrison | Spotted B-75 Beast 30548 | -6/Garrison | Triggered checkpoint 30576 | -6/Garrison | Discovered new exit (range 10) 30721 | -6/Garrison | Assimilated Beast 5c with formatsys_high 30767 | -6/Garrison | Found Enh. Force Lance 30798 | -6/Garrison | Triggered checkpoint 30874 | -6/Garrison | Garrison Relay disabled 30878 | -6/Garrison | Triggered checkpoint 30973 | -6/Garrison | Entered Factory 30973 | -5/Factory | Evolved 2 slots: Power x1, Utility x1 31273 | -5/Factory | First assault squad dispatched 31836 | -5/Factory | Discovered new exit (range 16) 31860 | -5/Factory | Entered Extension 31920 | -5/Extension | Build established: Bothacker-Mutant 32321 | -5/Extension | Energy Cycler disabled 32321 | -5/Extension | Rescued a captive Derelict 32321 | -5/Extension | Rescued a captive Derelict 32321 | -5/Extension | Rescued a captive Derelict 32322 | -5/Extension | Rescued a captive Derelict 32324 | -5/Extension | Rescued a captive Derelict 32335 | -5/Extension | Rescued a captive Derelict 32769 | -5/Extension | Spotted B-75 Beast 32781 | -5/Extension | Spotted B-75 Beast 32796 | -5/Extension | Allies destroyed B-75 Beast 32802 | -5/Extension | Destroyed B-75 Beast 32825 | -5/Extension | Discovered new exit (range 14) 32851 | -5/Extension | Extracted ID and sensor layout for unrecognized location from A7's data core 33045 | -5/Extension | Found Prototype Protection 33046 | -5/Extension | Identified Med. Regenerative Plating 33274 | -5/Extension | Discovered new exit (range 10) 33275 | -5/Extension | Discovered new exit (range 6) 33324 | -5/Extension | Entered Cetus 33324 | -5/Cetus | Accompanied by 8 allies 33347 | -5/Cetus | Spotted Cetus Guard 33347 | -5/Cetus | Spotted Cetus Guard 33347 | -5/Cetus | Allies destroyed Cetus Guard 33349 | -5/Cetus | Spotted Cetus Guard 33349 | -5/Cetus | Spotted Cetus Guard 33362 | -5/Cetus | Allies destroyed Cetus Guard 33371 | -5/Cetus | Allies destroyed Cetus Guard 33519 | -5/Cetus | Discovered new exit (range 16) 33572 | -5/Cetus | Spotted Cetus Guard 33572 | -5/Cetus | Spotted Cetus Guard 33582 | -5/Cetus | Spotted Cetus Guard 33582 | -5/Cetus | Allies destroyed Cetus Guard 33583 | -5/Cetus | Spotted Cetus Guard 33591 | -5/Cetus | Destroyed Cetus Guard 33598 | -5/Cetus | Destroyed Cetus Guard 33598 | -5/Cetus | Allies destroyed Cetus Guard 33621 | -5/Cetus | Discovered new exit (range 15) 33637 | -5/Cetus | Met Revision 17 33717 | -5/Cetus | Entered Archives 33717 | -5/Archives | Accompanied by 1 ally 33774 | -5/Archives | Discovered new exit (range 15) 34638 | -5/Archives | Discovered new exit (range 16) 34663 | -5/Archives | Entered Hub_04(d) 34663 | -5/Hub_04(d) | Accompanied by 2 allies 34795 | -5/Hub_04(d) | Discovered new exit (range 5) 34905 | -5/Hub_04(d) | Identified exit to Garrison 34905 | -5/Hub_04(d) | Entered Garrison 34935 | -5/Garrison | Lost 3 parts (1n1u1w) 34982 | -5/Garrison | Triggered checkpoint 35095 | -5/Garrison | Build established: Scavenger-Mutant 35127 | -5/Garrison | Garrison Relay disabled 35283 | -5/Garrison | Triggered checkpoint 35333 | -5/Garrison | Spotted B-75 Beast 35406 | -5/Garrison | Destroyed B-75 Beast 35433 | -5/Garrison | Build established: Bothacker-Mutant 35513 | -5/Garrison | Triggered checkpoint 35572 | -5/Garrison | Triggered checkpoint 35684 | -5/Garrison | Expanded RIF knowledge: Signal Jamming 35732 | -5/Garrison | Triggered checkpoint 35790 | -5/Garrison | Garrison Relay disabled 35875 | -5/Garrison | Discovered new exit (range 10) 35986 | -5/Garrison | Triggered checkpoint 36093 | -5/Garrison | Build established: Botlord-Mutant 36146 | -5/Garrison | Found embedded Infiltrators 36152 | -5/Garrison | Discovered new exit (range 13) 36242 | -5/Garrison | Triggered checkpoint 36322 | -5/Garrison | Triggered checkpoint 36354 | -5/Garrison | Expanded RIF knowledge: Structural Interface 36382 | -5/Garrison | Garrison Relay disabled 36711 | -5/Garrison | Discovered new exit (range 12) 36714 | -5/Garrison | Triggered checkpoint 36736 | -5/Garrison | Garrison Relay disabled 36855 | -5/Garrison | Entered Factory 36855 | -4/Factory | Accompanied by 4 allies 36855 | -4/Factory | Evolved 2 slots: Utility x2 36940 | -4/Factory | Found Prototype Processor 36941 | -4/Factory | Identified Exp. Signal Interpreter 36971 | -4/Factory | Fabricated M-13 Machinist (x1) 37035 | -4/Factory | Spotted B-86 Titan 37041 | -4/Factory | Assimilated Titan 7a with formatsys_high 37146 | -4/Factory | First assault squad dispatched 37153 | -4/Factory | Discovered new exit (range 16) 37216 | -4/Factory | P-70 Sage assimilated allied Q4-G4Y(l) 37307 | -4/Factory | Identified exit to Upper Caves 37620 | -4/Factory | Identified exit to Garrison 37620 | -4/Factory | Entered Garrison 37912 | -4/Garrison | Triggered checkpoint 37981 | -4/Garrison | Garrison Relay disabled 38109 | -4/Garrison | Spotted B-86 Titan 38130 | -4/Garrison | Triggered checkpoint 38171 | -4/Garrison | Triggered checkpoint 38174 | -4/Garrison | Destroyed B-86 Titan 38379 | -4/Garrison | Triggered checkpoint 38403 | -4/Garrison | Garrison Relay disabled 38437 | -4/Garrison | Expanded RIF knowledge: Alert ID Control 38467 | -4/Garrison | Discovered new exit (range 5) 38510 | -4/Garrison | Spotted B-86 Titan 38774 | -4/Garrison | Triggered checkpoint 38780 | -4/Garrison | Discovered new exit (range 11) 38819 | -4/Garrison | Garrison Relay disabled 38910 | -4/Garrison | Identified exit to Research 38963 | -4/Garrison | Spotted B-86 Titan 38978 | -4/Garrison | Spotted B-86 Titan 39208 | -4/Garrison | Garrison Relay disabled 39266 | -4/Garrison | Discovered exit to Research (range 14) 39461 | -4/Garrison | Entered Research 39461 | -3/Research | Evolved 2 slots: Propulsion x2 39661 | -3/Research | Revision forces began assault on 0b10 40009 | -3/Research | Discovered new exit (range 5) 40014 | -3/Research | Identified exit to Quarantine 40023 | -3/Research | Entered Quarantine 40038 | -3/Quarantine | Found Alien Energy Cannon 40084 | -3/Quarantine | Found Alien Impact Weapon 40114 | -3/Quarantine | Found Alien Artifact 40114 | -3/Quarantine | Identified Phase Armor 40138 | -3/Quarantine | Cryocooling Duct disabled 40153 | -3/Quarantine | Ambient heat levels rising (+20) 40153 | -3/Quarantine | Non-combat units ordered to evacuate 40528 | -3/Quarantine | Found Prototype Device 40531 | -3/Quarantine | Identified Adv. EM Disruption Field 40617 | -3/Quarantine | System corruption reached 10% 40740 | -3/Quarantine | Repaired Imp. Heavy Treads 40817 | -3/Quarantine | Spotted Alpha 7 40821 | -3/Quarantine | Identified Core Stripper 40830 | -3/Quarantine | Destroyed Alpha 7 40845 | -3/Quarantine | Found Prototype Device 40845 | -3/Quarantine | Identified Exp. ECM Suite 40849 | -3/Quarantine | Found Prototype Processor 40849 | -3/Quarantine | Identified Exp. Target Analyzer 40853 | -3/Quarantine | Found Exp. Targeting Computer 40952 | -3/Quarantine | Discovered new exit (range 4) 41550 | -3/Quarantine | Found Alien Artifact 41576 | -3/Quarantine | Core integrity fell below 50% 41629 | -3/Quarantine | Found Alien Artifact 41637 | -3/Quarantine | Found Alien Artifact 41903 | -3/Quarantine | Spotted Fortress 41933 | -3/Quarantine | Destroyed Fortress 41948 | -3/Quarantine | Found Prototype Reactor 41948 | -3/Quarantine | Identified Vortex Chain Reactor 41957 | -3/Quarantine | Lost 3 parts (1p1n1u) 41969 | -3/Quarantine | Found Prototype Protection 41969 | -3/Quarantine | Identified Centrium Heavy Armor Plating 41974 | -3/Quarantine | Found Prototype Device 41975 | -3/Quarantine | Identified Exp. EM Disruption Field 41982 | -3/Quarantine | Found Prototype Device 41982 | -3/Quarantine | Identified Exp. Force Field 41995 | -3/Quarantine | Found Prototype Device 41995 | -3/Quarantine | Identified Thermal Barrier 42110 | -3/Quarantine | Discovered new exit (range 5) 42116 | -3/Quarantine | Entered Section 7 42178 | -3/Section 7 | Found Alien Artifact 42222 | -3/Section 7 | Identified Dimensional Node Initializer 42222 | -3/Section 7 | Identified Transdimensional Reconstructor 42222 | -3/Section 7 | Identified Subatomic Replicator 42222 | -3/Section 7 | Identified Microwarp Drive 42222 | -3/Section 7 | Identified Core Cannon 42331 | -3/Section 7 | Found Core Reset Matrix 42461 | -3/Section 7 | Spotted S7 Guard 42478 | -3/Section 7 | Found Core Membrane 42478 | -3/Section 7 | Installed Core Membrane, gained immunity to corruption 42504 | -3/Section 7 | Destroyed S7 Guard 42510 | -3/Section 7 | Found Corrupted Prototype Protection 42510 | -3/Section 7 | Identified Hvy. Regenerative Plating 42569 | -3/Section 7 | Build established: Hacker-Mutant 42788 | -3/Section 7 | Spotted S7 Guard 42837 | -3/Section 7 | Destroyed S7 Guard 42907 | -3/Section 7 | Found Core Physics Calibrator 43236 | -3/Section 7 | Spotted S7 Guard 43256 | -3/Section 7 | Destroyed S7 Guard 43287 | -3/Section 7 | Spotted Alpha 7 43287 | -3/Section 7 | Spotted Alpha 7 43292 | -3/Section 7 | Destroyed Alpha 7 43305 | -3/Section 7 | Destroyed Alpha 7 43323 | -3/Section 7 | Found Alien Artifact 43342 | -3/Section 7 | Identified Navigation Efficiency Matrix 43359 | -3/Section 7 | Found Exp. Targeting Computer 43380 | -3/Section 7 | Build established: Scavenger-Mutant 43473 | -3/Section 7 | Found Spacefold Activator 43636 | -3/Section 7 | Spotted B-99 Colossus 43682 | -3/Section 7 | Destroyed B-99 Colossus 43780 | -3/Section 7 | Found Alien Artifact 43783 | -3/Section 7 | Found Alien Artifact 43785 | -3/Section 7 | Found Alien Artifact 43834 | -3/Section 7 | Found Alien Artifact 43834 | -3/Section 7 | Identified LRC Insulator 43834 | -3/Section 7 | Installed LRC Insulator, gained EM resistance (25) 43837 | -3/Section 7 | Found Alien Artifact 43837 | -3/Section 7 | Identified LRC Energy Well 43837 | -3/Section 7 | Installed LRC Energy Well, increased energy storage capacity (+250) 44008 | -3/Section 7 | Found Transdimensional Reconstructor 44069 | -3/Section 7 | Spotted Executioner 44071 | -3/Section 7 | Spotted Executioner 44098 | -3/Section 7 | Destroyed Executioner 44098 | -3/Section 7 | Core integrity fell below 20% 44108 | -3/Section 7 | Destroyed Executioner 44225 | -3/Section 7 | Warped through subspace 44278 | -3/Section 7 | Identified exit to Garrison 44278 | -3/Section 7 | Entered Garrison 44338 | -3/Garrison | Triggered checkpoint 44342 | -3/Garrison | Discovered new exit (range 10) 44353 | -3/Garrison | Identified exit to Research 44368 | -3/Garrison | Entered Research 44368 | -2/Research | Accompanied by 1 ally 44368 | -2/Research | Evolved 2 slots: Power x1, Utility x1 44404 | -2/Research | Identified Integrity Redistributor (x3) 44410 | -2/Research | Used Integrity Redistributor, redistributed integrity from core (-347) 44584 | -2/Research | Found Prototype Processor 44591 | -2/Research | Identified Exp. Target Analyzer 44681 | -2/Research | Found Exp. Signal Interpreter 44707 | -2/Research | Identified exit to Testing 44958 | -2/Research | Discovered new exit (range 16) 44986 | -2/Research | Identified exit to Access 45050 | -2/Research | Found Prototype Processor 45053 | -2/Research | Identified Exp. Armor Integrity Analyzer 45054 | -2/Research | Found Prototype Processor 45056 | -2/Research | Identified Exp. Terrain Scan Processor 45065 | -2/Research | Found Exp. Armor Integrity Analyzer 45336 | -2/Research | Entered Testing 45472 | -2/Testing | Found Prototype Energy Gun 45472 | -2/Testing | Identified Hyp. EM Gauss Rifle 45502 | -2/Testing | Identified exit to Garrison 45564 | -2/Testing | Found Prototype Energy Cannon 45564 | -2/Testing | Identified Cld. Nova Cannon 45729 | -2/Testing | Found Prototype Device 45736 | -2/Testing | Identified Exp. Shield Generator 46045 | -2/Testing | Spotted PL-T0TJH4W4TG 46062 | -2/Testing | Destroyed PL-T0TJH4W4TG 46275 | -2/Testing | Discovered exit to Access (range 8) 46317 | -2/Testing | Found Prototype Device 46323 | -2/Testing | Identified Adv. Kinecellerator 46378 | -2/Testing | Found Prototype Protection 46378 | -2/Testing | Identified SHELL Armor 46453 | -2/Testing | Entered Garrison 46562 | -2/Garrison | Destroyed 9 combat bots 46685 | -2/Garrison | Discovered exit to Access (range 8) 46736 | -2/Garrison | Expanded RIF knowledge: Autooverride 46752 | -2/Garrison | Garrison Relay disabled 46808 | -2/Garrison | Rewired B-90 Cyclops 46854 | -2/Garrison | Entered Access 46854 | -1/Access | Evolved 2 slots (calibrated): Power x1, Utility x2, -Weapon x1 47102 | -1/Access | Build established: Botlord-Mutant 47104 | -1/Access | Found Exp. EM Disruption Field 47249 | -1/Access | Found Exp. Shield Generator 47382 | -1/Access | Used Subatomic Replicator to replicate Tri-rail Accelerator 47806 | -1/Access | Discovered new exit (range 8) 47818 | -1/Access | Entered Command 48132 | -1/Command | Spotted B-99 Colossus 48147 | -1/Command | Destroyed B-99 Colossus 48281 | -1/Command | Spotted M Guard 48283 | -1/Command | Spotted Combat Programmer 48284 | -1/Command | Spotted Combat Programmer 48288 | -1/Command | Spotted M Guard 48324 | -1/Command | Destroyed M Guard 48353 | -1/Command | Destroyed M Guard 48358 | -1/Command | Found Prototype Device 48359 | -1/Command | Identified AEGIS Remote Shield 48363 | -1/Command | Found Prototype Reactor 48363 | -1/Command | Identified Zero-point Reactor 48366 | -1/Command | Found Zero-point Reactor 48377 | -1/Command | Found Exp. Targeting Computer 48408 | -1/Command | Build established: Generator-Mutant 48425 | -1/Command | Destroyed Combat Programmer 48462 | -1/Command | Destroyed Combat Programmer 48462 | -1/Command | All MAIN.C guards destroyed 48658 | -1/Command | Found Prototype Launcher 49818 | -1/Command | First assault squad dispatched 49849 | -1/Command | Identified Hellfire Missile Launcher 49885 | -1/Command | Destroyed 9 combat bots 49932 | -1/Command | Met MAIN.C 49947 | -1/Command | 0b10 Conduit disabled 49975 | -1/Command | Destroyed MAIN.C Shell 49977 | -1/Command | Surrendered to MAIN.C 49977 | -1/Command | Loaded intel: 61 machine locations 49977 | -1/Command | Loaded intel: 109 trap records 49977 | -1/Command | Identified exit to Surface 49977 | -1/Command | Discovered exit to Surface (range 47) 49977 | -1/Command | Discovered exit to Surface (range 91) 50101 | -1/Command | Found Zero-point Reactor 50112 | -1/Command | Found Prototype Device 50112 | -1/Command | Identified Beam Splitter 50136 | -1/Command | Found Exp. Target Analyzer 50163 | -1/Command | MAIN.C activated Command garrisons 50201 | -1/Command | Unknown forces attacked Command 50201 | -1/Command | Spotted EQ-001 50240 | -1/Command | Spotted EQ-014 50243 | -1/Command | Spotted EQ-006 50255 | -1/Command | Used Integrity Redistributor, redistributed integrity from core (-163) 50267 | -1/Command | Spotted EQ-008 50273 | -1/Command | Spotted EQ-000 50278 | -1/Command | Destroyed EQ-008 50286 | -1/Command | Spotted EQ-016 50287 | -1/Command | Spotted EQ-019 50287 | -1/Command | Spotted EQ-021 50290 | -1/Command | Spotted EQ-018 50305 | -1/Command | Destroyed EQ-018 50311 | -1/Command | Destroyed EQ-016 50344 | -1/Command | Found Prototype Processor 50344 | -1/Command | Identified Exp. Core Analyzer 50349 | -1/Command | Found Exp. Core Analyzer 50388 | -1/Command | Spotted EQ-038 50388 | -1/Command | Spotted EQ-040 50388 | -1/Command | Spotted EQ-041 50388 | -1/Command | Spotted EQ-050 50388 | -1/Command | Spotted EQ-039 50398 | -1/Command | Destroyed EQ-041 50416 | -1/Command | Spotted EQ-048 50420 | -1/Command | Destroyed EQ-048 50436 | -1/Command | Spotted EQ-024 50441 | -1/Command | Spotted EQ-031 50502 | -1/Command | Spotted EQ-061 50502 | -1/Command | Spotted EQ-060 50510 | -1/Command | Destroyed EQ-061 50593 | -1/Command | Spotted EQ-077 50599 | -1/Command | Destroyed EQ-077 50602 | -1/Command | Spotted EQ-075 50604 | -1/Command | Spotted EQ-084 50604 | -1/Command | Spotted EQ-086 50604 | -1/Command | Spotted EQ-089 50604 | -1/Command | Spotted EQ-085 50605 | -1/Command | Spotted EQ-068 50610 | -1/Command | Spotted EQ-072 50612 | -1/Command | Spotted EQ-073 50618 | -1/Command | Destroyed EQ-075 50620 | -1/Command | Spotted EQ-095 50624 | -1/Command | Spotted EQ-087 50635 | -1/Command | Spotted EQ-107 50649 | -1/Command | Used Integrity Redistributor, redistributed integrity from core (-366) 50654 | -1/Command | Spotted EQ-106 50656 | -1/Command | Core integrity fell below 50% 50671 | -1/Command | Destroyed EQ-073 50679 | -1/Command | Destroyed EQ-106 50691 | -1/Command | Destroyed EQ-072 50705 | -1/Command | Spotted EQ-059 50706 | -1/Command | Spotted EQ-067 50716 | -1/Command | Destroyed EQ-067 50720 | -1/Command | Spotted EQ-117 50720 | -1/Command | Spotted EQ-124 50733 | -1/Command | Destroyed EQ-124 50734 | -1/Command | Attackers retreated from Command 50735 | *** | Fortifying 0b10! Last Messages --------------- 50719_ Acquired 7 matter. 50719_ Acquired 37 matter. 50719_ Acquired 4 matter. 50719_ Acquired 112 matter. EQ-124 warps into view. 50720_ Slug penetrates MAIN.C. 50723_ Penetrated by Slug. 50727_ Destroyed Adv. Dynamic Insulation System. 50729_ EQ-124 knocked back. 50729_ Destroyed Adv. EM Disruption Field. 50730_ Penetrated by Slug. 50733_ EQ-124 destroyed. 50734_ ALERT: Enemy forces retreating. MAIN.C: I admit your assistance was pivotal here. It looks like I was right to trust you. This attack appears to have been designed to merely test our defenses, although it was nearly effective enough to force me to take the conflict to the next level. Investigating the origins of these bots should be one of our highest priorities... Map ----- +----------------------------------------------------+ | ############ ##????????????????????????#?#?#???? | | # #### ##????????????????????????#?#?#???? | | # #]]] =#????????????????????????#?#?#???? | | # #]]] ] =#????????????????????????#?#?#???? | | + #!! =#????????????????????????#?#?#???? | | # #!! * #????????????????????????#?#?#???? | | # #########????????????????????????#?#?#???? | | # #????????????????????????????????#?#?#???? | | # #????????????????????????????????#?#?#???? | | #########????????????????????????????????#?#?#???? | | ##???????????????????????????????????????#?#?#???? | | ####????????????????????????????????????#?#?#???? | | #????????????????????????????????????#?#?#???? | | #????????????????????????????????????#?#?#???? | | ### #????????????????????????????????????#?#?#???? | | ###+#####????????????????????????????????#?#?#???? | | # #????????????????????????????????#?#?#???? | | # #????????????????????????????????#?#?#???? | | # #?###########################????#?#?#???? | | # #?#?????????????????????????#????#?#?#???? | | # % !#?#?#######################?#????#?#?#???? | | # *%#?#?#"""" " !################ | | # !#?#?#"" !! !#?#????????????? | | # #?#?#""" % = [################ | | + #?#?#""" % [ !=%=%[ | | # #?#?#" @ =!=! % ! | | # #?#?#"" [% * ! % | | # [ #?#?# ! M % ################ | | # #?#?# = %[%[%%#?#????????????? | | # % #?#?# ! [ =!!%################ | | # #?#?# ! [%%! %=%"#?#????#?#?#???? | | # #?#?# / = %[%!*%[%%%#?#????#?#?#???? | | % #?#?# [ *! =[/% %#?#????#?#?#???? | | % = !/#####?# = %#?#????#?#?#???? | | !#%[%%# ##?# % = #?#????#?#?#???? | | !!!*[%%!%#### % " #?#????#?#?#???? | | =%%%[%[=%%! % % #?#????#?#?#???? | | =!!%=%=[%!=%! %% !%[ #?#????#?#?#???? | | %!%[%/*=%[% ! = ! #?#????#?#?#???? | | =%%%%*####% %% #?#????#?#?#???? | | [ [= ##?#% !% "#?#????#?#?#???? | | ####?#%[ % %! % %=%#?#????#?#?#???? | | "????##%##"######### #########?#????#?#?#???? | | #????###?##????# ### #????????#????#?#?#???? | | "## #????###########################????#?#?#???? | | #?# #???????????????????????????????????#?#?#???? | | #?# #???????????????????????????????????#?#?#???? | | #?# #???????????????????????????????????#?#?#???? | | #?# #???????????????????????????????????#?#?#???? | | #?# #???????????????????????????????????#?#?#???? | +----------------------------------------------------+ Best States ------------- Heat Dissipation 91 Coolant Potential 120 Energy Generation 113 Energy Capacity 1950 Matter Stores 396 Matter Capacity 500 Sight Range 23 Robot Scan Range 20 Terrain Scan Density 10 Jamming Range 16 Additional Mass Support 20 Armor Coverage 1800 Resistance: KI 25 Resistance: TH 20 Resistance: EX 20 Resistance: EM 100 Resistance: I 20 Resistance: S 20 Resistance: P 20 Utility Shielding 66 Weapon Cycling 25 Evasion (%) 50 Targeting Accuracy 24 Target Analysis 14 Core Analysis 12 Armor Integrity Analysis 50 Recoil Reduction 6 Kinecelleration 50 Offensive Hacking 20 Defensive Hacking 20 Relay Coupler Types 5 Relay Coupler Value 147 Authchip Count 2 Item Schematics ----------------- Adv. Gravity Neutralizer | -3/Section 7 | Archive Enh. Coil Gun | -3/Section 7 | Archive Tesla Bomb Launcher | -3/Section 7 | Archive Robot Schematics ------------------ M-13 Machinist | -10/Materials | Hacked G-67 Veteran | -3/Section 7 | Archive O-32 Director | -3/Section 7 | Archive X-77 Beamer | -3/Section 7 | Archive Fabricated ------------ M-13 Machinist | x1 | -7/Factory | Authchip M-13 Machinist | x1 | -6/Factory | Authchip M-13 Machinist | x1 | -4/Factory | Authchip Alien Tech Used ----------------- Phase Armor Core Stripper Core Membrane LRC Insulator LRC Energy Well Transdimensional Reconstructor Microwarp Drive Integrity Redistributor Core Physics Calibrator Subatomic Replicator Achievements -------------- None Challenges ------------ None Game ------ Seed MolecularSpectralMultirail Manual? 0 Play Time 09:31:19 Cumulative 741.6 hours Start 2022.12.17 @ 20:14:32 End 2022.12.21 @ 02:23:20 Sessions 7 Manual Loads 0 Difficulty Rogue Special Mode None Game No. 646 Rogue 646 Adventurer 0 Explorer 0 Win Type 8 Total 34 Types 14/5/6/1/1/1/4/1/1 Lore% 93 Gallery% 97 Achievement% 80 Wizard Run 0 Options --------- ASCII 0 Keyboard 0 Movement Mouse Keybinds 1 Fullscreen 2 Font 24/Smallcaps Map View 76x50 Tactical HUD 1 Map Filters NONE Filters NONE Steam 1 RUN: 419565db-6a9e-4070-8512-17b5de12bc43